{"text_format":"1","workbook":"xlsx","n_sheets":8,"sheets":["FOGLIO CALCOLI","ARCHIVIO","PARAMETRI ATTIVITA","MULTI ATTIVITA","PARAMETRI ATTIVITA (2)","Foglio1","FOGLIO CALCOLI (2)","Foglio2"],"not_rendered":{"charts":0,"images":0,"macros":1,"external_links":0,"defined_names":15,"comments":0,"pivot_tables":0},"unopened":[],"bounds":{"document_bytes":16777216,"sheet_cells":100000,"rows_first":2000,"rows_last":500,"rows_between":2000,"halvings":0,"cell_chars":16384,"cell_head_chars":4096},"cells_cut":0,"cells_raw":0,"read":"whole","date_system":"1900"}

{"sheet":"FOGLIO CALCOLI","index":0,"n_rows":40,"n_cols":47,"rows_kept":40,"cut":false,"hidden":false,"merged":[[0,16,0,24],[1,2,1,15],[0,2,0,15],[1,16,1,17],[1,18,1,22],[14,16,14,17],[15,16,15,17],[14,19,14,22],[15,19,15,22],[16,19,16,22],[17,19,17,22],[30,2,30,15],[16,5,17,7],[20,17,20,18],[19,17,19,18],[21,17,21,18],[20,5,20,7],[19,3,19,4],[20,3,20,4],[16,16,16,17],[17,16,17,17],[19,5,19,9],[21,5,21,9]]}
[null,null,"FASE 1 - PROGETTO DI PREVENZIONE INCENDI",null,null,null,null,null,null,null,null,null,null,null,null,null,"FASE 2 - ASSISTENZA D.L. e SCIA"]
[null,null,"PARAMETRI PROGETTO",null,null,null,null,null,null,null,null,null,null,null,null,null,"Tipo Incarico e attività",null,"PARAMETRI SCIA PARZIALI"]
["Attività","Descrizione","Parametro Principale","Un.Mis","Valore [S]","Parametro X","Valore [X]","Parametro Y","Valore [Y]","Attività Normata? [A]","Richiesta di Deroga [D]","Soluzioni alternative [I]","Numero di soluzioni","Soluzione/i con FSE?","Numero di scenari FSE","hi","Incarico Completo","Categoria Attività","B.1 Direzione Lavori","B2  [n] Tabellare","B2 [n] Analitico","B3 [n]  Impianti","B4 \nSCIA","B.5 Non Aggravio","Hj",null,null,null,null,null,null,"rif.RigaIn","Rif.RigaFin","Ind.Sottotipo","Fatt. Corr","Par.Agg1","Par.X","Par.Agg2","Par.Y","Limite","Eccedenza","PAR X","PAR Y","Par. Princ","PER ATT. 68"]
[75,{"$f":"+VLOOKUP($A4,TabAtt,2,FALSE)","v":"Autorimesse pubbliche e private, parcheggi pluriplano e meccanizzati di superficie complessiva superiore a 300 m2; locali adibiti al ricovero di natanti ed aeromobili di superficie superiore a 500 m2; depositi di mezzi rotabili al chiuso (treni, tram ecc.) di superficie superiore a 1000 m2"},"Superficie",{"$f":"+VLOOKUP(C4,INDIRECT(ADDRESS(AF4,4,1,,\"PARAMETRI ATTIVITA\") & \":\" & +ADDRESS(AF4+5,12,1,,)),2,FALSE)","v":"m²"},null,"Num. di Piani Interrati\nINSERIRE VALORE",null,"Automobili",null,"DM 2015","NO","NO",null,"NO",null,{"$f":"+PARHF1","v":0},"SI","A",null,null,null,null,null,null,{"$f":"+PARHF2","v":0},null,null,null,null,null,null,{"$f":"+VLOOKUP($A4,TabAtt,3,FALSE)","v":107},{"$f":"+VLOOKUP($A4+1,TabAtt,3,FALSE)-AF4","v":2},{"$f":"+ADDRESS(AF4,4,1,,\"PARAMETRI ATTIVITA\")","v":"'PARAMETRI ATTIVITA'!$D$107"},{"$f":"+IF(E10=\"\",VLOOKUP(C4,INDIRECT(ADDRESS(AF4,4,1,,\"PARAMETRI ATTIVITA\") & \":\" & +ADDRESS(AF4+5,12,1,,)),3,FALSE),E10)","v":6},{"$f":"+ADDRESS(AF4,7,1,,\"PARAMETRI ATTIVITA\")","v":"'PARAMETRI ATTIVITA'!$G$107"},{"$f":"+IF(G8=\"\",IF(AU4=\"F\",IF(G4= 0, 1, IF((G4*AP4-AQ4)/G4<=1,1,(G4*AP4-AQ4)/G4)),AU4),G8)","v":1},{"$f":"+ADDRESS(AF4,9,1,,\"PARAMETRI ATTIVITA\")","v":"'PARAMETRI ATTIVITA'!$I$107"},{"$f":"+IF(I8=\"\",IF(A4=68,1,VLOOKUP(H4,INDIRECT(ADDRESS(AF4,9,1,,\"PARAMETRI ATTIVITA\") & \":\" & +ADDRESS(AF4+5,108,1,,)),2,FALSE)),I8)","v":1},{"$f":"+IF(E6=\"\",VLOOKUP(C4,INDIRECT(ADDRESS(AF4,4,1,,\"PARAMETRI ATTIVITA\") & \":\" & +ADDRESS(AF4+5,12,1,,)),8,FALSE),E6)","v":1000},{"$f":"+IF(E8=\"\",VLOOKUP(C4,INDIRECT(ADDRESS(AF4,4,1,,\"PARAMETRI ATTIVITA\") & \":\" & +ADDRESS(AF4+5,12,1,,)),9,FALSE),E8)","v":0.4},{"$f":"+IF(ISERROR(VLOOKUP($A4,TabAtt,13,FALSE))=FALSE,VLOOKUP($A4,TabAtt,13,FALSE),1)","v":2},{"$f":"+IF(ISERROR(VLOOKUP($A4,TabAtt,14,FALSE))=FALSE,VLOOKUP($A4,TabAtt,14,FALSE),1)","v":0.8},{"$f":"+E4","v":0},{"$f":"+IF(A4=68,G4*VLOOKUP(F4,INDIRECT(ADDRESS(AF4,7,1,,\"PARAMETRI ATTIVITA\") & \":\" & +ADDRESS(AF4+5,8,1,,)),2,FALSE)+I4*VLOOKUP(H4,INDIRECT(ADDRESS(AF4,9,1,,\"PARAMETRI ATTIVITA\") & \":\" & +ADDRESS(AF4+5,108,1,,)),2,FALSE),0)","v":0},null,{"$f":"+IF(A4=68,\"1\",VLOOKUP(F4,INDIRECT(ADDRESS(AF4,7,1,,\"PARAMETRI ATTIVITA\") & \":\" & +ADDRESS(AF4+5,8,1,,)),2,FALSE))","v":"F"}]
[null,null,null,{"$f":"+\"Limite superiore [\"& D4 & \"] =\"","v":"Limite superiore [m²] ="},{"$f":"+INDIRECT(ADDRESS(AF4,11,1,,\"PARAMETRI ATTIVITA\"))","v":1000},"Note =",{"$f":"+INDIRECT(ADDRESS(AF4,15,1,,\"PARAMETRI ATTIVITA\"))","v":"Y = (2P-1)/P [curva asintotica verso 2]"},null,null,null,null,null,null,null,{"$f":"1+0.2*O4","v":1},null,{"$f":"+IF(Q4=\"SI\",Q8,0)","v":1},{"$f":"+IF(R4=\"A\",R8,1)","v":0.8},{"$f":"+IF(S4=\"SI\",1,0)","v":0},{"$f":"+IF(S4=\"SI\",1,0)","v":0},{"$f":"+IF(S4=\"SI\",1,0)","v":0},null,{"$f":"+IF(W4=\"SI\",1,0)","v":0},{"$f":"+IF(X4=\"SI\",IF(R4=\"A\",0,1),0)","v":0},{"$f":"+IF(Y4=\"SI\",Y8,0)","v":0},null,null,null,null,null,null,{"$f":"+VLOOKUP(C4,INDIRECT(ADDRESS(AF4,4,1,,\"PARAMETRI ATTIVITA\") & \":\" & +ADDRESS(AF4+5,20,1,,)),16,FALSE)","v":107},null,{"$f":"+ADDRESS(AF4,4,1,,\"PARAMETRI ATTIVITA\") & \":\" & +ADDRESS(AF4+5,12,1,,)","v":"'PARAMETRI ATTIVITA'!$D$107:$L$112"}]
[null,null,null,{"$f":"+\"Modifica Limite superiore [\"& D4 & \"] =\"","v":"Modifica Limite superiore [m²] ="},null,null,null,null,null,null,null,null,null,null,null,null,null,null,null,{"$f":"+IF(T4=0,0,1)","v":0},{"$f":"+IF(U4=0,0,1)","v":0},{"$f":"+IF(V4=0,0,1)","v":0}]
[null,null,null,{"$f":"+\"Calcolo dell'eccedenza dei [\"& D4 & \"] =\"","v":"Calcolo dell'eccedenza dei [m²] ="},{"$f":"+INDIRECT(ADDRESS(AF4,12,1,,\"PARAMETRI ATTIVITA\"))","v":0.4},"Valore Parametro X =",{"$f":"+AK4","v":1},"Valore Parametro Y =",{"$f":"+AM4","v":1},null,null,null,null,null,null,null,"K per Full","K per A","K per Ass.","Tabellare","Analitico","k","K SCIA","K per NA",null,null,null,null,null,null,null,null,null,"PARAMETRO G",{"$f":"IF(AN4=0,+SQRT(AR4*AI4)*AK4*AM4,IF(AR4-AN4<0,+SQRT((AR4+AS4)*AI4)*AK4*AM4,SQRT((AN4+AS4+(AR4-AN4)*AO4)*AI4)*AK4*AM4))","v":0},null,null,null,null,null,{"$f":"+(G4*AP4-AQ4)/G4","v":{"$error":"#DIV/0!"}}]
[null,null,null,"Modifica Eccedenza = ",null,"Modifica Par.  X =",null,"Modifica Par.  Y =",null,null,null,null,null,null,null,null,1,0.8,0.5,{"$f":"+IF(S4=\"SI\",T9+3*SQRT(T4)+2*T4,T10+6*T4)*T6","v":0},{"$f":"+IF(S4=\"SI\",U9+6*SQRT(U4)+2*U4,U10+10*U4)*U6","v":0},{"$f":"V9*V4","v":0},0.75,{"$f":"+IF(S4=\"SI\",X9,IF(Q4=\"SI\",X9,X10))","v":0.15},null,null,null,null,null,null,null,null,null,"Sottoinsiemi",{"$f":"+PRODUCT(AI37:AL37)","v":1.5},null,"Alternative",{"$f":"+IF(L4=\"SI\",(1+0.05*M4),1)","v":1}]
[null,null,null,"Fattore K applicato:",{"$f":"+AI4","v":6},null,null,null,null,null,null,null,null,null,null,null,null,null,"Con b.2",4,4,30,null,0.15,null,null,null,null,null,null,null,null,null,"hf1",{"$f":"+PARG*AI8*AL8*AL9","v":0},null,"FSE",{"$f":"++IF(L4=\"SI\",IF(N4=\"SI\",1.4*(1+O4*0.2),1),1)","v":1}]
[null,null,null,"Modifica Fattore K :",null,null,null,null,null,null,null,null,null,null,null,null,null,null,"Senza b.2",10,10,30,null,0.25,null,null,null,null,null,null,null,"PARAMETRI SCIA",null,"hF2",{"$f":"IF(Q4=\"NO\",+SUM(AI12:AI16),R5*PARG+AI16)","v":0}]
[null,null,null,null,null,null,null,null,null,null,null,null,null,null,null,null,null,null,null,null,null,null,null,null,null,null,null,null,null,null,null,null,null,null,null,null,null,null,null,null,null,{"$f":"+ISERROR(VLOOKUP($A4,TabAtt,13,FALSE))","v":false}]
[null,null,null,null,null,null,null,null,null,null,null,null,null,null,null,null,null,null,null,null,null,null,null,null,null,null,null,null,null,null,null,null,null,"B1",{"$f":"+S5*S8*PARG","v":0},{"$f":"+IF(AI12>0,IF(SUM(AI13:AI16)>0,\"B1 + \",\"B1 =\"),\"\")","v":""},{"$f":"+IF(AI12>0,IF(SUM(AI13:AI16)>0,TEXT(AI12,\"#0,0#\") & \" +\",TEXT(AI12,\"#0,0#\") & \"=\"),\"\")","v":""}]
[null,null,null,null,null,null,null,null,null,null,null,null,null,null,null,null,null,null,null,null,null,null,null,null,null,null,null,null,null,null,null,null,null,"B2",{"$f":"+SUM(T8:U8)","v":0},{"$f":"+IF(AI13>0,IF(SUM(AI14:AI16)>0,\"B2 + \",\"B2 = \"),\"\")","v":""},{"$f":"+IF(AI13>0,IF(SUM(AI14:AI16)>0,TEXT(AI13,\"#0,0#\") & \" + \",TEXT(AI13,\"#0,0#\") & \" =\"),\"\")","v":""},"hj = Shjk","hi",{"$f":"+ IF(Q5 = 1,IF(R5 = 0.8, AL15,AL14),AL13) & IF(AI16>0,IF(Q5=1,\" + B.5\",\"\"),\"\") & \" =\"","v":"hj = 1,8 x Sgi ="}]
[null,null,null,null,null,null,null,null,null,null,null,null,null,null,null,null,null,null,null,null,null,null,null,null,null,null,null,null,null,null,null,null,null,"B3",{"$f":"+V8","v":0},{"$f":"+IF(AI14>0,IF(SUM(AI15:AI16)>0,\"B3 + \",\"B3 = \"),\"\")","v":""},{"$f":"+IF(AI14>0,IF(SUM(AI15:AI16)>0,TEXT(AI14,\"#0,0#\") & \" + \",TEXT(AI14,\"#0,0#\") & \" =\"),\"\")","v":""},"hj = Sgi"]
["INSERISCI",null,"INSERISCI",null,"INSERISCI","CONTROLLA",null,"CONTROLLA",null,"INDICARE",null,null,null,null,null,null,"INDICARE SE VIENE",null,null,"INDICARE I PARAMETRI",null,null,null,null,null,null,null,null,null,null,null,null,null,"B4",{"$f":"+W8*PARG*W5","v":0},{"$f":"+IF(AI15>0,IF(SUM(AI16)>0,\"B4 + \",\"B4 = \"),\"\")","v":""},{"$f":"+IF(AI15>0,IF(SUM(AI16)>0,TEXT(AI15,\"#0,0#\") & \" + \",TEXT(AI15,\"#0,0#\") & \" =\"),\"\")","v":""},"hj = 1,8 x Sgi","Seq",{"$f":"+ \" [\" & AH17 &\"]^0,5\" & TEXT(AI17,\"#0.00\") & TEXT(AJ17,\"#0.00\") & \"= \" & TEXT(PARG,\"#.0,00\")","v":" [x 6]^0,5 x 1 x1,00= 0,00"}]
["ATTIVITA'",null,"PARAMETRO",null,"QUANTITA'","SE ESISTE X",null,"SE ESISTE Y",null,"SE NORMATA,",null,null,null,null,null,null,"AFFIDATO L'INCARICO ",null,null,"PARZIALI DELLA FASE 2",null,null,null,null,null,null,null,null,null,null,null,null,null,"B5",{"$f":"+X8*X5*PARG","v":0},{"$f":"+IF(AI16>0,IF(Q5=1,TEXT(PARG*R5,\"#0,0#\")&\"+\",\"B5 =\"),\"\")","v":""},{"$f":"+IF(AI16>0,TEXT(AI16,\"#0,0#\") & \" = \",\"\")","v":""},null,"X"]
[null,null,"PRINCIPALE",null,null,"SE X o Y NON ESISTONO SELEZIONA NON DEF.",null,null,null,"NON NORMATA,",null,null,null,null,null,null,"COMPLETO E LA ",null,null,"(SOLO SE INCARICO",null,null,null,null,null,null,null,null,null,null,null,null,null,{"$f":"+IF(E5>0,IF((E4-E5)>0,\"(\" & E5 & \" + \"&E4-E5&\" x \" & E7 &\")x\" & E9,E4 & \"x \" & E9),E4)","v":"x 6"},{"$f":"+IF(AS4>0,\" +(\" & TEXT(G4,\"#0\") & \" x 7)^0,5\", IF(F4=\"non def.\",\"\",\" x \"&TEXT(G7,\"#0\")))","v":" x 1"},{"$f":"+IF(AS4>0,\" +(\"&TEXT(I4,\"#0\")&\" x 8)^0,5\",IF(H4=\"non def.\",\"x 1\",\" x\"&TEXT(I7,\"#0,00\")))","v":" x1,00"},null,null,"Y"]
[null,null,null,null,null,null,null,null,null,"O SI APPLICA IL D.M. 2015,",null,null,null,null,null,null,"CATEGORIA\n",null,null,"NON COMPLETO)\n"]
[]
[null,"Parametro  G=",{"$f":"+PARG","v":0},null,null,{"$f":"+ \" [\" & AH17 &\"]^0,5\" & TEXT(AI17,\"#0.00\") & TEXT(AJ17,\"#0.00\") & \"= \" & TEXT(PARG,\"#.0,00\")","v":" [x 6]^0,5 x 1 x1,00= 0,00"},null,null,null,null,null,null,null,null,null,null,"TOTALE FASE 1",{"$f":"10+PARHF1","v":10},null,"Ore Equivalenti",null,null,null,null,null,null,null,null,null,null,null,"SI",1,{"$f":"+IF($Q$4=\"SI\",\"N.D.\",\"SI\")","v":"N.D."},null,"A"]
[null,"Parametro Fase 1 hi =",{"$f":"+PARHF1","v":0},null,null,{"$f":"+TEXT(PARG,\"#0\")&\" x \"&AI37&\" x \"&AJ37&\" x \"&AK37&\" x \"&AL37&\" = \"&TEXT(PARHF1,\"0#,00\")","v":"0 x 1,5 x 1 x 1 x 1 = 0,00"},null,null,null,null,null,null,null,null,null,null,"TOTALE FASE 2",{"$f":"10+PARHF2","v":10},null,"Ore Equivalenti",null,null,null,null,null,null,null,null,null,null,null,"NO",0,{"$f":"+IF($Q$4=\"SI\",\"N.D.\",\"NO\")","v":"N.D."},null,"B"]
[null,"Parametro Fase 2 hj =",{"$f":"+PARHF2","v":0},null,"hj = 1,8 x Sgi =",{"$f":"AJ12& AJ13 & AJ14 & AJ15& AJ16 &AK12 & AK13&AK14&AK15&AK16 & TEXT(PARHF2,\"#0,0#\")","v":"0,0"},null,null,null,null,null,null,null,null,null,null,"TOTALE PER INCARICO COMPLETO",{"$f":"+IF(Q4=\"SI\",R20+R21,\"-\")","v":20},null,"Ore Equivalenti",null,null,null,null,null,null,null,null,null,null,null,null,null,null,null,"C"]
[null,null,null,null,null,null,null,null,null,null,null,null,null,null,null,null,null,"(Totale ore equivalenti per una singola attività)",null,null,null,null,null,null,null,null,null,null,null,null,null,"Gi","Seq","K"]
[]
[null,null,null,null,null,null,null,null,null,null,null,null,null,null,null,null,null,null,null,null,null,null,null,null,null,null,null,null,null,null,null,null,{"$f":"\"Gi = [SxK]^0,5 \" & IF(AI17 = \"\",\"\",\" x X\") & IF(AJ17=\"\",\"\",\"  x Y\") & \" = \" &  \" [\" & AH17 &\"]^0,5\" & TEXT(AI17,\"#0.00\") & TEXT(AJ17,\"#0.00\") & \"= \" & TEXT(P4,\"#.0,00\")","v":"Gi = [SxK]^0,5  x X  x Y =  [x 6]^0,5 x 1 x1,00= 0,00"}]
[]
[]
[]
[]
[]
[null,null,{"$f":"\"G = [SxK]^0,5 \" & IF(AI17 = \"\",\"\",\" x X\") & IF(AJ17=\"\",\"\",\"  x Y\") & \" = \" &  \" [\" & AH17 &\"]^0,5\" & TEXT(AI17,\"#0.00\") & TEXT(AJ17,\"#0.00\") & \"= \" & TEXT(P4,\"#.0,00\")","v":"G = [SxK]^0,5  x X  x Y =  [x 6]^0,5 x 1 x1,00= 0,00"},null,null,null,null,null,null,null,null,null,null,null,null,null,null,null,1070]
[null,null,null,null,null,null,null,null,null,null,null,null,null,null,null,null,null,null,null,null,null,null,null,null,null,null,null,null,null,null,null,null,null,null,null,null,"nof","der","Alterna"]
[null,null,null,null,null,null,null,null,null,null,null,null,null,null,null,null,null,null,null,null,null,null,null,null,null,null,null,null,null,null,null,null,null,"Non Normato",1.2,"SI",1.2,1.5,1.4]
[null,null,null,null,null,null,null,null,null,null,null,null,null,null,null,null,null,null,null,null,null,null,null,null,null,null,null,null,null,null,null,null,null,"normata da regola tecnica prescrittiva",1,"NO",1,1,1]
[null,null,null,null,null,null,null,null,null,null,null,null,null,null,null,null,null,null,{"$f":"(2*2-1)/2","v":1.5},null,null,null,null,null,null,null,null,null,null,null,null,null,null,"DM 2015",1.5]
[null,null,"Parametro Attività",null,"NOF?","DER?","FSE?","Costo Orario"]
[null,null,{"$f":"+P4","v":0},null,"no","no","no",50,null,null,null,null,null,null,null,null,null,null,null,null,null,null,null,null,null,null,null,null,null,null,null,null,null,null,{"$f":"+VLOOKUP(J4,AH33:AI35,2,FALSE)","v":1.5},{"$f":"+VLOOKUP(K4,$AJ$33:$AM$34,2,FALSE)","v":1},1,{"$f":"+VLOOKUP(G37,$AJ$33:$AM$34,4,FALSE)","v":1},{"$f":"+VLOOKUP(G37,$AJ$33:$AM$34,4,FALSE)","v":1}]
[]
[null,null,null,null,null,null,null,null,null,null,null,null,null,null,null,null,null,null,null,null,null,null,null,null,null,null,null,null,null,null,null,null,null,null,{"$f":"+P4/(PRODUCT(AI37:AL37))","v":0}]
[null,7]

{"sheet":"ARCHIVIO","index":1,"n_rows":4,"n_cols":27,"rows_kept":4,"cut":false,"hidden":true,"merged":[]}
["Attività","Descrizione","Parametro Principale","Un.Mis","Valore [S]","Parametro X","Valore [X]","Parametro Y","Valore [Y]","Attività Normata?","Totale Parametro","Compenso Stimato Minimo Progettaz","Compenso Stimato Massimo Progettaz","Compenso atteso ","Incarico Completo","Categoria Attività","B.2 Direzione Lavori","B3  [n] Tabellare","B3 [n] Analitico","B4 [n]  Impianti","B5 \nSCIA","B.6 Non Aggravio","Totale","Compenso Stimato Minimo SCIA","Compenso Stimato Massimo SCIA","Compenso atteso ","NOTE"]
[65,"Locali di spettacolo e di trat [...]","Superficie","m²",56666,"Persone\nINSERIRE VALORE",59,"Non Def.",null,"DM 2015",297.7399872371866,null,null,"OK","SI","A",null,null,null,null,null,"NO",357.28798468462395,"-",357.28798468462395,"OK"]
["Attività","Descrizione [...]","Parametro Principale","Un.Mis","Valore [S]","Parametro X","Valore [X]","Parametro Y","Valore [Y]","Attività Normata? [A]","Richiesta di Deroga [D]",null,null,null,"Soluzioni alternative [I]","Numero di soluzioni","Soluzione/i con FSE?","Numero di scenari FSE","hi","Incarico Completo","Categoria Attività","B.1 Direzione Lavori","B2  [n] Tabellare"]
["Attività","Descrizione [...]","Parametro Principale","Un.Mis","Valore [S]","Parametro X","Valore [X]","Parametro Y","Valore [Y]","Attività Normata? [A]","Richiesta di Deroga [D]",null,null,null,"Soluzioni alternative [I]","Numero di soluzioni","Soluzione/i con FSE?","Numero di scenari FSE","hi","Incarico Completo","Categoria Attività","B.1 Direzione Lavori","B2  [n] Tabellare"]

{"sheet":"PARAMETRI ATTIVITA","index":2,"n_rows":116,"n_cols":34,"rows_kept":116,"cut":false,"hidden":true,"merged":[]}
["N. Att","Descrizione","RifRiga","SottoTipo","Un.Mis","Fat. Corr (K)","Descr. X","X","Descr. Y","Y","Limite","Eccedenza","Asintoto","Partenza",null,null,null,null,null,"=SCARTO(INDIRETTO($X$2);0;0;$I$14)",null,null,null,null,null,"x NEC","Y NEC","F",null,null,"SEL Y",null,null,"SEL X"]
[1,"Stabilimenti ed impianti ove si producono e/o impiegano gas infiammabili e/o comburenti con quantità globali in ciclo superiori a 25 Nm3/h",{"$f":"+ROW(A2)","v":2},"Stabilimento [Superficie]","m²",6,"Infiammabile",2,"Direttiva Seveso",3,null,null,null,null,null,null,null,null,{"$f":"+C2","v":2},"=SCARTO(\"D\" & $V2 ;0;0;$W$2)",null,null,null,null,null,0,0,{"$f":"+IF(M2=\"\",H2,\"F\")","v":2},{"$f":"+IF(Z2=1,G2 & CHAR(10) &  \"INSERIRE VALORE\",G2)","v":"Infiammabile"},null,{"$f":"+VLOOKUP($V2,A2:R22,8)","v":{"$error":"#N/A"}},{"$f":"+IF(G2=\"\",\"\",AC2)","v":"Infiammabile"}]
[null,null,{"$f":"+ROW(A3)","v":3},"Solo Deposito [Quantità]","Nm³",100,"Comburente",1,"Non Direttiva Seveso",1,null,null,null,null,null,null,null,null,3,null,null,null,null,null,null,0,0,{"$f":"+IF(M3=\"\",H3,\"F\")","v":1},{"$f":"+IF(Z3=1,G3 & CHAR(10) &  \"INSERIRE VALORE\",G3)","v":"Comburente"},null,null,{"$f":"+IF(G3=\"\",\"\",AC3)","v":"Comburente"}]
[2,"Impianti di compressione o di decompressione dei gas infiammabili e/o comburenti con potenzialità superiore a 50 Nm3/h, con esclusione dei sistemi di riduzione del gas naturale inseriti nelle reti di distribuzione con pressione di esercizio non superiore a 0,5 MPa",{"$f":"+ROW(A4)","v":4},"Ciclo [Superficie]","m²",6,"Infiammabile",2,"Direttiva Seveso",3,null,null,null,null,null,null,null,null,4,null,null,null,null,null,null,0,0,2,"Infiammabile",null,null,"Infiammabile"]
[null,null,5,"Solo Deposito","Nm³",4,"Comburente",1,"Non Direttiva Seveso",1,null,null,null,null,null,null,null,null,5,null,null,null,null,null,null,0,0,1,"Comburente",null,null,"Comburente"]
[3,"Impianti di riempimento, depositi, rivendite di gas infiammabili in recipienti mobili: compressi con capacità geometrica complessiva superiore o uguale a 0,75 m3; disciolti o liquefatti per quantitativi in massa complessivi superiori o uguali a 75 kg",6,"Superficie","m²",6,"Solo Deposito",1,"Direttiva Seveso",3,200,0.1,null,null,null,null,null,null,6,null,null,null,null,null,null,0,0,1,"Solo Deposito",null,null,"Solo Deposito"]
[null,null,7,null,null,null,"Deposito e rivendita",1.2,"Non Direttiva Seveso",1,400,0.1,null,null,null,null,null,null,7,null,null,null,null,null,null,0,0,1.2,"Deposito e rivendita",null,null,"Deposito e rivendita"]
[4,"Depositi di gas infiammabili in serbatoi fissi: compressi per capacità geometrica complessiva superiore o uguale a 0, 75 m3; disciolti o liquefatti per capacità geometrica complessiva superiore o uguale a 0,3 m3",8,"Volume","m³",300,"Solo Deposito",1,"Direttiva Seveso",3,200,0.1,null,null,null,null,null,null,8,null,null,null,null,null,null,0,0,1,"Solo Deposito",null,null,"Solo Deposito"]
[null,null,9,null,null,null,"Deposito e rivendita",1.2,"Non Direttiva Seveso",1,400,0.1,null,null,null,null,null,null,9,null,null,null,null,null,null,0,0,1.2,"Deposito e rivendita",null,null,"Deposito e rivendita"]
[5,"Depositi di gas comburenti compressi e/o liquefatti in serbatoi fissi e/o recipienti mobili per capacità geometrica complessiva superiore o uguale a 3 m3",10,"Capacità","m³",300,"Direttiva Seveso",3,"Non Def.",1,200,0.1,null,null,null,null,null,null,10,null,null,null,null,null,null,0,0,3,"Direttiva Seveso",null,null,"Direttiva Seveso"]
[null,null,11,null,null,null,"Non Direttiva Seveso",1,null,1,null,null,null,null,null,null,null,null,11,null,null,null,null,null,null,0,0,1,"Non Direttiva Seveso",null,null,"Non Direttiva Seveso"]
[6,"Reti di trasporto e di distribuzione di gas infiammabili, compresi quelli di origine petrolifera o chimica, con esclusione delle reti di distribuzione e dei relativi impianti con pressione di esercizio non superiore a 0,5 Mpa",12,"Estensione","m",80,"Non Def.",1,"Non Def.",1,null,null,null,null,null,null,null,null,12,null,null,null,null,null,null,0,0,1,"Non Def.",null,null,"Non Def."]
[7,"Centrali di produzione di idrocarburi liquidi e gassosi e di stoccaggio sotterraneo di gas naturale, piattaforme fisse e strutture fisse assimilabili, di perforazione e/o produzione di idrocarburi di cui al decreto del Presidente della Repubblica 24 maggio 1979, n. 886 ed al decreto legislativo 25 novembre 1996, n. 624",13,"Superficie?","m²",8,"Non Def.",1,"Non Def.",1,null,null,null,null,null,null,null,null,13,null,null,null,null,null,null,0,0,1,"Non Def.",null,null,"Non Def."]
[8,"Oleodotti con diametro superiore a 100 mm",14,"Estensione","m",20,"Non Def.",1,"Non Def.",1,null,null,null,null,{"$f":"+VLOOKUP(L14,INDIRECT(K14),2,FALSE)","v":{"$error":"#REF!"}},null,null,null,14,null,null,null,null,null,null,0,0,1,"Non Def.",null,null,"Non Def."]
[9,"Officine e laboratori con saldatura e taglio dei metalli utilizzanti gas infiammabili e/o comburenti, con oltre 5 addetti alla mansione specifica di saldatura o taglio",15,"Superficie o Kg materiali","m²",4,"Non Def.",1,"Non Def.",1,1000,0.2,null,null,null,null,null,null,15,null,null,null,null,null,null,0,0,1,"Non Def.",null,null,"Non Def."]
[10,"Stabilimenti ed impianti ove si producono e/o impiegano, liquidi infiammabili e/o combustibili con punto di infiammabilità fino a 125 °C, con quantitativi globali in ciclo e/o in deposito superiori a 1 m3",16,"Superficie o Qttà","m²",6,"Infiammabile",2,"Non Def.",1,1000,0.1,null,null,null,null,null,null,16,null,null,null,null,null,null,0,0,2,"Infiammabile",null,null,"Infiammabile"]
[null,null,17,null,null,null,"Combustibile",1,null,null,null,null,null,null,null,null,null,null,17,null,null,null,null,null,null,0,0,1,"Combustibile",null,null,"Combustibile"]
[11,"Stabilimenti ed impianti per la preparazione di oli lubrificanti, oli diatermici e simili, con punto di infiammabilità superiore a 125 °C, con quantitativi globali in ciclo e/o in deposito superiori a 5 m3",18,"Superficie o Qttà","m²",6,"Infiammabile",2,"Non Def.",1,1000,0.1,null,null,null,null,null,null,18,null,null,null,null,null,null,0,0,2,"Infiammabile",null,null,"Infiammabile"]
[null,null,19,null,null,null,"Combustibile",1,null,null,null,null,null,null,null,null,null,null,19,null,null,null,null,null,null,0,0,1,"Combustibile",null,null,"Combustibile"]
[12,"Depositi e/o rivendite di liquidi infiammabili e/o combustibili e/o oli lubrificanti, diatermici, di qualsiasi derivazione, di capacità geometrica complessiva superiore a 1 m3",20,"Volume","m³",150,"Infiammabile",1.5,"Solo deposito",1,100,0.1,null,null,null,null,null,null,20,null,null,null,null,null,null,0,0,1.5,"Infiammabile",null,null,"Infiammabile"]
[null,null,21,null,null,null,"Combustibile",1,"Dep. + rivendita",1.5,100,0.1,null,null,null,null,null,null,21,null,null,null,null,null,null,0,0,1,"Combustibile",null,null,"Combustibile"]
[13,"Impianti fissi di distribuzione carburanti per l'autotrazione, la nautica e l'aeronautica; contenitori - distributori rimovibili di carburanti liquidi: Impianti di distribuzione carburanti liquidi;  Impianti fissi di distribuzione carburanti gassosi e di tipo misto (liquidi e gassosi).",22,"Colonnine","n",100,"Infiammabile",1.5,"Solo Liquidi",1,null,null,null,null,null,null,null,null,22,null,null,null,null,null,null,0,0,1.5,"Infiammabile",null,null,"Infiammabile"]
[null,null,23,null,null,null,"Combustibile",1,"Liquidi e Gas",1.5,null,null,null,null,null,null,null,null,23,null,null,null,null,null,null,0,0,1,"Combustibile",null,null,"Combustibile"]
[14,"Officine o laboratori per la verniciatura con vernici infiammabili e/o combustibili con oltre 5 addetti.",24,"Superficie - Postazioni","m²",4,"Infiammabile - Qtà al Giorno",1.5,"Non Def.",1,300,0.1,null,null,null,null,null,null,24,null,null,null,null,null,null,0,0,1.5,"Infiammabile - Qtà al Giorno",null,null,"Infiammabile - Qtà al Giorno"]
[null,null,25,null,null,null,"Combustibile",1,null,null,null,null,null,null,null,null,null,null,25,null,null,null,null,null,null,0,0,1,"Combustibile",null,null,"Combustibile"]
[15,"Depositi e/o rivendite di alcoli con concentrazione superiore al 60% in volume di capacità geometrica superiore a 1 m3",26,"Volume","m³",150,"Infiammabile",1.5,"Solo deposito",1,100,0.1,null,null,null,null,null,null,26,null,null,null,null,null,null,0,0,1.5,"Infiammabile",null,null,"Infiammabile"]
[null,null,27,null,null,null,"Combustibile",1,"Dep. + rivendita",1.5,100,0.1,null,null,null,null,null,null,27,null,null,null,null,null,null,0,0,1,"Combustibile",null,null,"Combustibile"]
[16,"Stabilimenti di estrazione con solventi infiammabili e raffinazione di oli e grassi vegetali ed animali, con quantitativi globali di solventi in ciclo e/o in deposito superiori a 0,5 m3",28,"Volume","m³",150,"Non Def.",1,"Non Def.",1,null,null,null,null,null,null,null,null,28,null,null,null,null,null,null,0,0,1,"Non Def.",null,null,"Non Def."]
[17,"Stabilimenti ed impianti ove si producono, impiegano o detengono sostanze esplodenti classificate come tali dal regolamento di esecuzione del testo unico delle leggi di pubblica sicurezza approvato con regio decreto 6 maggio 1940, n. 635, e successive modificazioni ed integrazioni",29,"Superficie","m²",8,"Non Def.",1,"Non Def.",1,1000,0.1,null,null,null,null,null,null,29,null,null,null,null,null,null,0,0,1,"Non Def.",null,null,"Non Def."]
[18,"Esercizi di minuta vendita e/o depositi di sostanze esplodenti classificate come tali dal regolamento di esecuzione del testo unico delle leggi di pubblica sicurezza approvato con regio decreto 6 maggio 1940, n. 635, e successive modificazioni ed integrazioni. Esercizi di vendita di artifici pirotecnici declassificati in \"libera vendita\" con quantitativi complessivi in vendita e/o deposito superiori a 500 kg, comprensivi degli imballaggi;",30,"Superficie o Kg materiali","m²",8,"Libera vendita",1,"Non Def.",1,1000,0.1,null,null,null,null,null,null,30,null,null,null,null,null,null,0,0,1,"Libera vendita",null,null,"Libera vendita"]
[null,null,31,null,null,null,"Non Libera vend.",2,null,null,null,null,null,null,null,null,null,null,31,null,null,null,null,null,null,0,0,2,"Non Libera vend.",null,null,"Non Libera vend."]
[19,"Stabilimenti ed impianti ove si producono, impiegano o detengono sostanze instabili che possono dar luogo da sole a reazioni pericolose in presenza o non di catalizzatori ivi compresi i perossidi organici",32,"Superficie","m²",8,"Non Def.",1,"Non Def.",1,1000,0.1,null,null,"Potremmo mettere i Kg invece della superficie?",null,null,null,32,null,null,null,null,null,null,0,0,1,"Non Def.",null,null,"Non Def."]
[20,"Stabilimenti ed impianti ove si producono, impiegano o detengono nitrati di ammonio, di metalli alcalini e alcolino-terrosi, nitrato di piombo e perossidi inorganici",33,"Superficie","m²",8,"Non Def.",1,"Non Def.",1,1000,0.1,null,null,"Potremmo mettere i Kg invece della superficie?",null,null,null,33,null,null,null,null,null,null,0,0,1,"Non Def.",null,null,"Non Def."]
[21,"Stabilimenti ed impianti ove si producono, impiegano o detengono sostanze soggette all'accensione spontanea e/o sostanze che a contatto con l'acqua sviluppano gas infiammabili",34,"Superficie","m²",8,"Non Def.",1,"Non Def.",1,1000,0.1,null,null,"Potremmo mettere i Kg invece della superficie?",null,null,null,34,null,null,null,null,null,null,0,0,1,"Non Def.",null,null,"Non Def."]
[22,"Stabilimenti ed impianti ove si produce acqua ossigenata con concentrazione superiore al 60% di perossido di idrogeno",35,"Superficie","m²",8,"Non Def.",1,"Non Def.",1,1000,0.1,null,null,"Potremmo mettere i m³ invece della superficie?",null,null,null,35,null,null,null,null,null,null,0,0,1,"Non Def.",null,null,"Non Def."]
[23,"Stabilimenti ed impianti ove si produce, impiega e/o detiene fosforo e/o sesquisolfuro di fosforo",36,"Superficie o Kg materiali","m²",8,"Non Def.",1,"Non Def.",1,1000,0.1,null,null,"Potremmo mettere i Kg invece della superficie?",null,null,null,36,null,null,null,null,null,null,0,0,1,"Non Def.",null,null,"Non Def."]
[24,"Stabilimenti ed impianti per la macinazione e la raffinazione dello zolfo; depositi di zolfo con potenzialità superiore a 10.000 kg",37,"Superficie","m²",8,"Potenzialità [t]\nINSERIRE VALORE","F","Non Def.",1,1000,0.1,2,10,"Y = (2Q-10)/Q [curva asintotica verso 2]",null,null,null,37,null,null,null,null,null,null,0,0,"F","Potenzialità [t]\nINSERIRE VALORE",null,null,"Potenzialità [t]\nINSERIRE VALORE"]
[25,"Fabbriche di fiammiferi; depositi di fiammiferi con quantitativi in massa superiori a 500 kg",38,"Superficie","m²",8,"massa [kg]\nINSERIRE VALORE","F","Non Def.",1,1000,0.1,2,500,"Y = (2Q-500)/Q [curva asintotica verso 2]",null,null,null,38,null,null,null,null,null,null,0,0,"F","massa [kg]\nINSERIRE VALORE",null,null,"massa [kg]\nINSERIRE VALORE"]
[26,": Stabilimenti ed impianti ove si produce, impiega o detiene magnesio, elektron e altre leghe ad alto tenore di magnesio",39,"Superficie o Kg materiali","m²",8,"Non Def.",1,"Non Def.",1,1000,0.1,null,null,"Potremmo mettere i Kg invece della superficie?",null,null,null,39,null,null,null,null,null,null,0,0,1,"Non Def.",null,null,"Non Def."]
[27,"Mulini per cereali ed altre macinazioni con potenzialità giornaliera superiore a 20.000 kg; Depositi di cereali e di altre macinazioni con quantitativi in massa superiori a 50.000 kg",40,"Superficie","m²",6,"massa [t]\nINSERIRE VALORE","F","Deposito solamente",0.6,1000,0.1,2,20,"Y = (2Q-20)/Q [curva asintotica verso 2]",null,null,null,40,null,null,null,null,null,null,1,0,"F","massa [t]\nINSERIRE VALORE\nINSERIRE VALORE",null,null,"massa [t]\nINSERIRE VALORE\nINSERIRE VALORE"]
[null,null,41,null,null,null,"",0,"Dep. + mulino",1,1000,0.1,null,null,null,null,null,null,41,null,null,null,null,null,null,1,0,0,"\nINSERIRE VALORE",null,null,""]
[28,"Impianti per l'essiccazione di cereali e di vegetali in genere con depositi di prodotto essiccato con quantitativi in massa superiori a 50.000 kg",42,"Superficie","m²",6,"massa [t]\nINSERIRE VALORE","F","Non Def.",1,1000,0.1,2,50,"Y = (2Q-50)/Q [curva asintotica verso 2]",null,null,null,42,null,null,null,null,null,null,1,0,"F","massa [t]\nINSERIRE VALORE\nINSERIRE VALORE",null,null,"massa [t]\nINSERIRE VALORE\nINSERIRE VALORE"]
[null,null,43,null,null,null,"",0,null,null,null,null,null,null,null,null,null,null,43,null,null,null,null,null,null,1,0,0,"\nINSERIRE VALORE",null,null,""]
[29,"Stabilimenti ove si producono surrogati del caff",44,"Superficie o Kg materiali (doppia)","m²",6,"Non Def.",1,"Non Def.",1,1000,0.1,null,null,null,null,null,null,44,null,null,null,null,null,null,0,0,1,"Non Def.",null,null,"Non Def."]
[30,"Zuccherifici e raffinerie dello zucchero",45,"Superficie o Kg materiali (doppia)","m²",6,"Non Def.",1,"Non Def.",1,1000,0.1,null,null,null,null,null,null,45,null,null,null,null,null,null,0,0,1,"Non Def.",null,null,"Non Def."]
[31,"Pastifici e/o riserie con produzione giornaliera superiore a 50.000 kg",46,"Superficie","m²",6,"massa [t]\nINSERIRE VALORE","F","Non Def.",1,1000,0.1,2,50,"Y = (2Q-50)/Q [curva asintotica verso 2]",null,null,null,46,null,null,null,null,null,null,1,0,"F","massa [t]\nINSERIRE VALORE\nINSERIRE VALORE",null,null,"massa [t]\nINSERIRE VALORE\nINSERIRE VALORE"]
[32,"Stabilimenti ed impianti ove si lavora e/o detiene foglia di tabacco con processi di essiccazione con oltre 100 addetti o con quantitativi globali in ciclo e/o in deposito superiori a 50.000 kg",47,"Superficie","m²",6,"massa [t]\nINSERIRE VALORE","F","Non Def.",1,1000,0.1,2,50,"Y = (2Q-50)/Q [curva asintotica verso 2]",null,null,null,47,null,null,null,null,null,null,1,0,"F","massa [t]\nINSERIRE VALORE\nINSERIRE VALORE",null,null,"massa [t]\nINSERIRE VALORE\nINSERIRE VALORE"]
[33,"Stabilimenti ed impianti per la produzione della carta e dei cartoni e di allestimento di prodotti cartotecnici in genere con oltre 25 addetti o con materiale in lavorazione e/o in deposito superiore a 50.000 kg",48,"Superficie","m²",6,"massa [t]\nINSERIRE VALORE","F","Deposito di carta",1,1000,0.1,2,50,"Y = (2Q-50)/Q [curva asintotica verso 2]",null,null,null,48,null,null,null,null,null,null,1,0,"F","massa [t]\nINSERIRE VALORE\nINSERIRE VALORE",null,null,"massa [t]\nINSERIRE VALORE\nINSERIRE VALORE"]
[null,null,49,null,null,null,"",0,"Dep. + stabilimento",1.5,1000,0.1,null,null,null,null,null,null,49,null,null,null,null,null,null,1,0,0,"\nINSERIRE VALORE",null,null,""]
[34,"Depositi di carta, cartoni e prodotti cartotecnici, archivi di materiale cartaceo, biblioteche, depositi per la cernita della carta usata, di stracci di cascami e di fibre tessili per l'industria della carta, con quantitativi in massa superiori a 5.000 kg",50,"Superficie","m²",4,"massa [t]\nINSERIRE VALORE","F","Depositi/archivi",1,1000,0.1,2,50,"Y = (2Q-50)/Q [curva asintotica verso 2]",null,null,null,50,null,null,null,null,null,null,1,0,"F","massa [t]\nINSERIRE VALORE\nINSERIRE VALORE",null,null,"massa [t]\nINSERIRE VALORE\nINSERIRE VALORE"]
[null,null,null,null,null,null,"",0,"Biblioteche",2,null,null,null,null,null,null,null,null,null,null,null,null,null,null,null,1,0,0,"\nINSERIRE VALORE",null,null,""]
[35,"Stabilimenti, impianti, depositi ove si producono, impiegano e/o detengono carte fotografiche, calcografiche, eliografiche e cianografiche, pellicole cinematografiche, radiografiche e fotografiche con materiale in lavorazione e/o in deposito superiore a 5.000 kg",52,"Superficie","m²",6,"massa [t]\nINSERIRE VALORE","F","Solo deposito",1,1000,0.1,2,5,"Y = (2Q-5)/Q [curva asintotica verso 2]",null,null,null,52,null,null,null,null,null,null,1,0,"F","massa [t]\nINSERIRE VALORE\nINSERIRE VALORE",null,null,"massa [t]\nINSERIRE VALORE\nINSERIRE VALORE"]
[null,null,53,null,null,null,"",0,"Dep+ Impianto",1.3,1000,0.1,null,null,null,null,null,null,53,null,null,null,null,null,null,1,0,0,"\nINSERIRE VALORE",null,null,""]
[36,"Depositi di legnami da costruzione e da lavorazione, di legna da ardere, di paglia, di fieno, di canne, di fascine, di carbone vegetale e minerale, di carbonella, di sughero e di altri prodotti affini con quantitativi in massa superiori a 50.000 kg con esclusione dei depositi all'aperto con distanze di sicurezza esterne superiori a 100 m",{"$f":"+ROW(A54)","v":54},"Superficie","m²",4,"massa [t]\nINSERIRE VALORE","F","Non Def.",1,1000,0.1,2,50,"Y = (2Q-50)/Q [curva asintotica verso 2]",null,null,null,54,null,null,null,null,null,null,1,0,"F","massa [t]\nINSERIRE VALORE\nINSERIRE VALORE",null,null,"massa [t]\nINSERIRE VALORE\nINSERIRE VALORE"]
[37,"Stabilimenti e laboratori per la lavorazione del legno con materiale in lavorazione e/o in deposito superiore a 5.000 kg",55,"Superficie","m²",7,"massa [t]\nINSERIRE VALORE","F","Solo deposito",1,1000,0.1,2,5,"Y = (2Q-5)/Q [curva asintotica verso 2]",null,null,null,55,null,null,null,null,null,null,1,0,"F","massa [t]\nINSERIRE VALORE\nINSERIRE VALORE",null,null,"massa [t]\nINSERIRE VALORE\nINSERIRE VALORE"]
[null,null,56,null,null,null,"",0,"Dep + Laboratorio",1.5,null,null,null,null,null,null,null,null,56,null,null,null,null,null,null,1,0,0,"\nINSERIRE VALORE",null,null,""]
[38,"Stabilimenti ed impianti ove si producono, lavorano e/o detengono fibre tessili e tessuti naturali e artificiali, tele cerate, linoleum e altri prodotti affini, con quantitativi in massa superiori a 5.000 kg",57,"Superficie","m²",6,"massa [t]\nINSERIRE VALORE","F","Solo deposito",1,1000,0.1,2,5,"Y = (2Q-5)/Q [curva asintotica verso 2]",null,null,null,57,null,null,null,null,null,null,1,0,"F","massa [t]\nINSERIRE VALORE\nINSERIRE VALORE",null,null,"massa [t]\nINSERIRE VALORE\nINSERIRE VALORE"]
[null,null,58,null,null,null,"",0,"Dep + Stabilimento",1.5,null,null,null,null,null,null,null,null,58,null,null,null,null,null,null,1,0,0,"\nINSERIRE VALORE",null,null,""]
[39,"Stabilimenti per la produzione di arredi, di abbigliamento, della lavorazione della pelle e calzaturifici, con oltre 25 addetti",59,"Superficie","m²",8,"Non Def.",1,"Non Def.",1,1000,0.1,null,null,null,null,null,null,59,null,null,null,null,null,null,0,0,1,"Non Def.",null,null,"Non Def."]
[40,"Stabilimenti ed impianti per la preparazione del crine vegetale, della trebbia e simili, lavorazione della paglia, dello sparto e simili, lavorazione del sughero, con quantitativi in massa in lavorazione o in deposito superiori a 5.000 kg",60,"Superficie","m²",8,"massa [t]\nINSERIRE VALORE","F","Solo deposito",0.6,1000,0.1,2,5,"Y = (2Q-5)/Q [curva asintotica verso 2]",null,null,null,60,null,null,null,null,null,null,1,0,"F","massa [t]\nINSERIRE VALORE\nINSERIRE VALORE",null,null,"massa [t]\nINSERIRE VALORE\nINSERIRE VALORE"]
[null,null,61,null,null,null,"",0,"Dep + Stabilimento",1,null,null,null,null,null,null,null,null,61,null,null,null,null,null,null,1,0,0,"\nINSERIRE VALORE",null,null,""]
[41,"Teatri e studi per le riprese cinematografiche e televisive",62,"Superficie","m²",6,"Non Def.",1,"Non Def.",1,1000,0.1,null,null,null,null,null,null,62,null,null,null,null,null,null,0,0,1,"Non Def.",null,null,"Non Def."]
[null,null,63,null,null,null,null,null,null,1,null,null,null,null,null,null,null,null,63,null,null,null,null,null,null,0,0,0,0,null,null,""]
[42," Laboratori per la realizzazione di attrezzerie e scenografie, compresi i relativi depositi, di superficie complessiva superiore a 200 m2",64,"Superficie","m²",6,"Non Def.",1,"Non Def.",1,1000,0.1,null,null,null,null,null,null,64,null,null,null,null,null,null,0,0,1,"Non Def.",null,null,"Non Def."]
[43,"Stabilimenti ed impianti per la produzione, lavorazione e rigenerazione della gomma e/o laboratori di vulcanizzazione di oggetti di gomma, con quantitativi in massa superiori a 5.000 kg;  Depositi di prodotti della gomma, pneumatici e simili, con quantitativi in massa superiori a 10.000 kg",65,"Superficie","m²",6,"massa [t]\nINSERIRE VALORE","F","Solo deposito",0.6,1000,0.1,2,5,"Y = (2Q-5)/Q [curva asintotica verso 2]",null,null,null,65,null,null,null,null,null,null,0,0,"F","massa [t]\nINSERIRE VALORE",null,null,"massa [t]\nINSERIRE VALORE"]
[null,null,66,null,null,null,"",0,"Dep + Stabilimento",1,null,null,null,null,null,null,null,null,66,null,null,null,null,null,null,0,0,0,"",null,null,""]
[44,"Stabilimenti, impianti, depositi ove si producono, lavorano e/o detengono materie plastiche, con quantitativi in massa superiori a 5.000 kg",67,"Superficie","m²",6,"massa [t]\nINSERIRE VALORE","F","Solo deposito",0.6,1000,0.1,2,5,"Y = (2Q-5)/Q [curva asintotica verso 2]",null,null,null,{"$f":"+C67","v":67},null,null,null,null,null,null,1,0,{"$f":"+IF(M67=\"\",H67,\"F\")","v":"F"},{"$f":"+IF(Z67=1,G67 & CHAR(10) &  \"INSERIRE VALORE\",G67)","v":"massa [t]\nINSERIRE VALORE\nINSERIRE VALORE"},null,null,{"$f":"+IF(G67=\"\",\"\",AC67)","v":"massa [t]\nINSERIRE VALORE\nINSERIRE VALORE"}]
[null,null,68,null,null,null,"",0,"Dep + Stabilimento",1,null,null,null,null,null,null,null,null,68,null,null,null,null,null,null,1,0,0,"\nINSERIRE VALORE",null,null,""]
[45,"Stabilimenti ed impianti ove si producono e lavorano resine sintetiche e naturali, fitofarmaci, coloranti organici e intermedi e prodotti farmaceutici con l'impiego di solventi ed altri prodotti infiammabili",69,"Superficie","m²",6,"Non Def.",1,"Non Def.",1,1000,0.1,null,null,null,null,null,null,69,null,null,null,null,null,null,0,0,1,"Non Def.",null,null,"Non Def."]
[null,null,70,null,null,null,"",0,null,null,null,null,null,null,null,null,null,null,70,null,null,null,null,null,null,0,0,0,"",null,null,""]
[46,"Depositi di fitofarmaci e/o di concimi chimici a base di nitrati e/o fosfati con quantitativi in massa superiori a 50.000 kg",71,"Superficie","m²",4,"massa [t]\nINSERIRE VALORE","F","Non Def.",1,300,0.1,2,50,"Y = (2Q-50)/Q [curva asintotica verso 2]",null,null,null,71,null,null,null,null,null,null,1,0,"F","massa [t]\nINSERIRE VALORE\nINSERIRE VALORE",null,null,"massa [t]\nINSERIRE VALORE\nINSERIRE VALORE"]
[47,"Stabilimenti ed impianti per la fabbricazione di cavi e conduttori elettrici isolati, con quantitativi in lavorazione e/o in deposito superiori a 10.000 kg; Depositi e/o rivendite di cavi elettrici isolati con quantitativi superiori a 10.000 kg",72,"Superficie","m²",6,"massa [t]\nINSERIRE VALORE","F","Solo deposito",0.6,1000,0.1,2,10,"Y = (2Q-10)/Q [curva asintotica verso 2]",null,null,null,72,null,null,null,null,null,null,1,0,"F","massa [t]\nINSERIRE VALORE\nINSERIRE VALORE",null,null,"massa [t]\nINSERIRE VALORE\nINSERIRE VALORE"]
[null,null,73,null,null,null,"",0,"Dep + impianto",1,null,null,null,null,null,null,null,null,73,null,null,null,null,null,null,0,0,0,"",null,null,""]
[48,"Centrali termoelettriche, macchine elettriche fisse con presenza di liquidi isolanti combustibili in quantitativi superiori a 1 m³",74,"Potenza ","MW",30,"Non Def.",1,"Non Def.",1,null,null,null,null,null,null,null,null,74,null,null,null,null,null,null,0,0,1,"Non Def.",null,null,"Non Def."]
[49,"Gruppi per la produzione di energia elettrica sussidiaria con motori endotermici ed impianti di cogenerazione di potenza complessiva superiore a 25 kW",75,"Potenza ","kW",4,"Isolato o all'esterno",0.6,"Non Def.",1,null,null,null,null,null,null,null,null,75,null,null,null,null,null,null,0,0,0.6,"Isolato o all'esterno",null,null,"Isolato o all'esterno"]
[null,null,76,null,null,null,"In edificio",1,null,null,null,null,null,null,null,null,null,null,76,null,null,null,null,null,null,0,0,1,"In edificio",null,null,"In edificio"]
[50,"Stabilimenti ed impianti ove si producono lampade elettriche e simili, pile ed accumulatori elettrici e simili, con oltre 5 addetti",77,"Superficie","m²",6,"Non Def.",1,"Non Def.",1,1000,0.1,null,null,null,null,null,null,77,null,null,null,null,null,null,0,0,1,"Non Def.",null,null,"Non Def."]
[51,"Stabilimenti siderurgici e per la produzione di altri metalli con oltre 5 addetti; attività comportanti lavorazioni a caldo di metalli con oltre 5 addetti ad esclusione dei laboratori artigiani di oreficeria ed argenteria fino a 25 addetti",78,"Superficie","m²",6,"Non Def.",1,"Non Def.",1,1000,0.2,null,null,null,null,null,null,78,null,null,null,null,null,null,0,0,1,"Non Def.",null,null,"Non Def."]
[52,"Stabilimenti, con oltre 5 addetti, per la costruzione di aeromobili, veicoli a motore, materiale rotabile ferroviario e tramviario, carrozzerie e rimorchi per autoveicoli; cantieri navali con oltre 5 addetti",79,"Superficie","m²",8,"Non Def.",1,"Non Def.",1,1000,0.1,null,null,null,null,null,null,79,null,null,null,null,null,null,0,0,1,"Non Def.",null,null,"Non Def."]
[53,"Officine per la riparazione di: veicoli a motore, rimorchi per autoveicoli e carrozzerie, di superficie coperta superiore a 300 m2; materiale rotabile tramviario e di aeromobili, di superficie coperta superiore a 1000 m2",80,"Superficie","m²",6,"Solo Veicoli a motore",1,"Non Def.",1,1000,0.1,null,null,null,null,null,null,80,null,null,null,null,null,null,0,0,1,"Solo Veicoli a motore",null,null,"Solo Veicoli a motore"]
[null,null,81,null,null,null,"Aeromobili o treni",0.6,null,null,null,null,null,null,null,null,null,null,81,null,null,null,null,null,null,0,0,0.6,"Aeromobili o treni",null,null,"Aeromobili o treni"]
[54,"Officine meccaniche per lavorazioni a freddo con oltre 25 addetti",82,"Superficie","m²",6,"Non Def.",1,"Non Def.",1,1000,0.1,null,null,null,null,null,null,82,null,null,null,null,null,null,0,0,1,"Non Def.",null,null,"Non Def."]
[55,"Attività di demolizioni di veicoli e simili con relativi depositi, di superficie superiore a 3000 m²",83,"Superficie","m²",6,"Non Def.",1,"Non Def.",1,1000,0.1,null,null,null,null,null,null,83,null,null,null,null,null,null,0,0,1,"Non Def.",null,null,"Non Def."]
[56,"Stabilimenti ed impianti ove si producono laterizi, maioliche, porcellane e simili con oltre 25 addetti",84,"Superficie","m²",6,"Non Def.",1,"Non Def.",1,1000,0.1,null,null,null,null,null,null,84,null,null,null,null,null,null,0,0,1,"Non Def.",null,null,"Non Def."]
[57,"Cementifici con oltre 25 addetti",85,"Superficie","m²",6,"Non Def.",1,"Non Def.",1,1000,0.1,null,null,null,null,null,null,85,null,null,null,null,null,null,0,0,1,"Non Def.",null,null,"Non Def."]
[58,"Pratiche di cui al D.Lgs. 230/95 s.m.i. soggette a provvedimenti autorizzativi (art. 27 del D.Lgs. 230/95 ed art. 13 legge 31 dicembre 1962, n. 1860)",86,"Superficie","m²",6,"Categoria B",1,"Non Def.",1,1000,0.1,null,null,null,null,null,null,86,null,null,null,null,null,null,0,0,1,"Categoria B",null,null,"Categoria B"]
[null,null,87,null,null,null,"Categoria A",1.5,null,null,null,null,null,null,null,null,null,null,87,null,null,null,null,null,null,0,0,1.5,"Categoria A",null,null,"Categoria A"]
[59,"Autorimesse adibite al ricovero di mezzi utilizzati per il trasporto di materie fissili speciali e di materie radioattive (art. 5 della legge 31 dicembre 1962, n. 1860, sostituito dall'art. 2 del decreto del Presidente della Repubblica 30 dicembre 1965, n. 1704; art. 21 del D.Lgs. 230/95)",88,"Superficie","m²",4,"Non Def.",1,"Non Def.",1,1000,0.1,null,null,null,null,null,null,88,null,null,null,null,null,null,0,0,1,"Non Def.",null,null,"Non Def."]
[60,"Impianti di deposito delle materie nucleari ed attività assoggettate agli artt. 33 e 52 del decreto legislativo 17 marzo 1995, n. 230 e s.m.i. , con esclusione dei depositi in corso di spedizione",89,"Superficie","m²",6,"Non Def.",1,"Non Def.",1,1000,0.1,null,null,null,null,null,null,89,null,null,null,null,null,null,0,0,1,"Non Def.",null,null,"Non Def."]
[61,"Impianti nei quali siano detenuti combustibili nucleari o prodotti o residui radioattivi [art. 1, lettera b) della legge 31 dicembre 1962, n. 1860]",90,"Superficie","m²",6,"Non Def.",1,"Non Def.",1,1000,0.1,null,null,null,null,null,null,90,null,null,null,null,null,null,0,0,1,"Non Def.",null,null,"Non Def."]
[62,"Impianti relativi all'impiego pacifico dell'energia nucleare ed attività che comportano pericoli di radiazioni ionizzanti derivanti dal predetto impiego: impianti nucleari",91,"Superficie","m²",10,"Non Def.",1,"Non Def.",1,1000,0.1,null,null,null,null,null,null,91,null,null,null,null,null,null,0,0,1,"Non Def.",null,null,"Non Def."]
[63,"Stabilimenti per la produzione, depositi di sapone, di candele e di altri oggetti di cera e di paraffina, di acidi grassi, di glicerina grezza quando non sia prodotta per idrolisi, di glicerina ",92,"Superficie","m²",4,"massa [kg]","F","Non Def.",1,1000,0.1,2,500,"Y = (2Q-500)/Q [curva asintotica verso 2]",null,null,null,92,null,null,null,null,null,null,0,0,"F","massa [kg]",null,null,"massa [kg]"]
[64,"Centri informatici di elaborazione e/o archiviazione dati con oltre 25 addetti",93,"Superficie","m²",6,"Non Def.",1,"Non Def.",1,300,0.1,null,null,null,null,null,null,93,null,null,null,null,null,null,0,0,1,"Non Def.",null,null,"Non Def."]
[65,"Locali di spettacolo e di trattenimento in genere, impianti e centri sportivi, palestre, sia a carattere pubblico che privato, con capienza superiore a 100 persone, ovvero di superficie lorda in pianta al chiuso superiore a 200 m2. Sono escluse le manifestazioni temporanee, di qualsiasi genere, che si effettuano in locali o luoghi aperti al pubblico",94,"Superficie","m²",6,"Persone\nINSERIRE VALORE","F","Non Def.",1,1000,0.1,3,200,"Y = (3N-200)/N [curva asintotica verso 3]",null,null,null,94,3,100,null,null,null,null,1,0,"F","Persone\nINSERIRE VALORE\nINSERIRE VALORE",null,null,"Persone\nINSERIRE VALORE\nINSERIRE VALORE"]
[66,"Alberghi, pensioni, motel, villaggi albergo, residenze turistico - alberghiere, studentati, villaggi turistici, alloggi agrituristici, ostelli per la gioventù, rifugi alpini, bed & breakfast, dormitori, case per ferie, con oltre 25 posti-letto; Strutture turistico-ricettive nell'aria aperta (campeggi, villaggi-turistici, ecc.) con capacità ricettiva superiore a 400 persone",95,"Superficie","m²",6,"Posti Letto\nINSERIRE VALORE","F","Non Def.",1,1000,0.4,2,25,"Y = (2N-25)/N [curva asintotica verso 2]",null,null,null,95,null,null,null,null,null,null,1,0,"F","Posti Letto\nINSERIRE VALORE\nINSERIRE VALORE",null,null,"Posti Letto\nINSERIRE VALORE\nINSERIRE VALORE"]
[67,"Scuole di ogni ordine, grado e tipo, collegi, accademie con oltre 100 persone presenti; asili nido con oltre 30 persone presenti",96,"Superficie","m²",4,"Persone\nINSERIRE VALORE","F","Non Def.",1,1000,0.1,2,100,"Y = (3N-100)/N [curva asintotica verso 3]",null,null,null,96,null,null,null,null,null,null,1,0,"F","Persone\nINSERIRE VALORE\nINSERIRE VALORE",null,null,"Persone\nINSERIRE VALORE\nINSERIRE VALORE"]
[68,"Strutture sanitarie che erogano prestazioni in regime di ricovero ospedaliero e/o residenziale a ciclo continuativo e/o diurno, case di riposo per anziani con oltre 25 posti letto;  Strutture sanitarie che erogano prestazioni di assistenza specialistica in regime ambulatoriale, ivi comprese quelle riabilitative, di diagnostica strumentale e di laboratorio, di superficie complessiva superiore a 500 m2",97,"Sup. area tipo C e D1","m²",6,"Sup. area tipo B e F\nINSERIRE VALORE",7,"Sup. area tipo D2\nINSERIRE VALORE",8,3000,0.4,null,null,"Per le aree di tipo C e D1 si applicano i limiti in superficie",null,null,null,97,null,null,null,null,null,null,0,0,7,"Sup. area tipo B e F\nINSERIRE VALORE",null,null,"Sup. area tipo B e F\nINSERIRE VALORE"]
[69,"Locali adibiti ad esposizione e/o vendita all'ingrosso o al dettaglio, fiere e quartieri fieristici, con superficie lorda superiore a 400 m2 comprensiva dei servizi e depositi. Sono escluse le manifestazioni temporanee, di qualsiasi genere, che si effettuano in locali o luoghi aperti al pubblico",98,"Superficie","m²",6,"Vendita Ingrosso\nINSERIRE VALORE",0.8,"Non Def.",1,1000,0.3,null,null,null,null,null,null,98,null,null,null,null,null,null,1,1,0.8,"Vendita Ingrosso\nINSERIRE VALORE\nINSERIRE VALORE",null,null,"Vendita Ingrosso\nINSERIRE VALORE\nINSERIRE VALORE"]
[null,null,99,null,null,null,"Vendita Dettaglio",1,null,null,null,null,null,null,null,null,null,null,99,null,null,null,null,null,null,null,0,1,"Vendita Dettaglio",null,null,"Vendita Dettaglio"]
[70,"Locali adibiti a depositi di superficie lorda superiore a 1000 m2 con quantitativi di merci e materiali combustibili superiori complessivamente a 5000 kg",100,"Superficie","m²",4,"massa [t]\nINSERIRE VALORE","F","Non Def.",1,1000,0.1,2,5,"Y = (2Q-5)/Q [curva asintotica verso 2]",null,null,null,100,null,null,null,null,null,null,1,0,"F","massa [t]\nINSERIRE VALORE\nINSERIRE VALORE",null,null,"massa [t]\nINSERIRE VALORE\nINSERIRE VALORE"]
[71,"Aziende ed uffici con oltre 300 persone presenti",101,"Superficie","m²",6,"Persone\nINSERIRE VALORE","F","Non Def.",1,1000,0.4,3,300,"Y = (3N-300)/N [curva asintotica verso 3]",null,null,null,101,null,null,null,null,null,null,1,0,"F","Persone\nINSERIRE VALORE\nINSERIRE VALORE",null,null,"Persone\nINSERIRE VALORE\nINSERIRE VALORE"]
[72,"Edifici sottoposti a tutela ai sensi del D.Lgs. 22 gennaio 2004, n. 42 destinati a contenere biblioteche ed archivi, musei, gallerie, esposizioni e mostre, nonché qualsiasi altra attività contenuta nel presente Allegato indipendentemente dal numero di attività costituenti e dalla relativa diversa titolarità",102,"Superficie","m²",8,"Bibblioteche, museo e simili",1,"Non Def.",1,1000,0.3,null,null,"Se le attività all'interno sono già soggette si aumenta solo di un 30%",null,null,null,102,null,null,null,null,null,null,0,0,1,"Bibblioteche, museo e simili",null,null,"Bibblioteche, museo e simili"]
[null,null,103,null,null,null,"Altre attività soggette",0.3,null,null,null,null,null,null,null,null,null,null,103,null,null,null,null,null,null,0,0,0.3,"Altre attività soggette",null,null,"Altre attività soggette"]
[73,"Edifici e/o complessi edilizi a uso terziario e/o industriale caratterizzati da promiscuità strutturale e/o dei sistemi delle vie di esodo e/o impiantistica con presenza di persone superiore a 300 unità, ovvero di superficie complessiva superiore a 5000 m2, indipendentemente dal numero di attività costituenti e dalla relativa diversa titolarità",104,"Superficie","m²",4,"Attività interne non soggette",1,"Non Def.",1,1500,0.1,null,null,"Se le attività all'interno sono già soggette si aumenta solo di un 20%",null,null,null,104,null,null,null,null,null,null,0,0,1,"Attività interne non soggette",null,null,"Attività interne non soggette"]
[null,null,105,null,null,null,"Attività interne soggette",0.2,null,null,null,null,null,null,null,null,null,null,105,null,null,null,null,null,null,0,0,0.2,"Attività interne soggette",null,null,"Attività interne soggette"]
[74,"Impianti per la produzione di calore alimentati a combustibile solido, liquido o gassoso con potenzialità superiore a 116 kW",106,"Potenza ","kW",4,"Non Def.",1,"Non Def.",1,null,null,null,null,null,null,null,null,106,null,null,null,null,null,null,0,0,1,"Non Def.",null,null,"Non Def."]
[75,"Autorimesse pubbliche e private, parcheggi pluriplano e meccanizzati di superficie complessiva superiore a 300 m2; locali adibiti al ricovero di natanti ed aeromobili di superficie superiore a 500 m2; depositi di mezzi rotabili al chiuso (treni, tram ecc.) di superficie superiore a 1000 m2",107,"Superficie","m²",6,"Num. di Piani Interrati\nINSERIRE VALORE","F","Automobili",1,1000,0.4,2,0.8,"Y = (2P-1)/P [curva asintotica verso 2]",null,null,null,107,null,null,null,null,null,null,1,0,"F","Num. di Piani Interrati\nINSERIRE VALORE\nINSERIRE VALORE",null,null,"Num. di Piani Interrati\nINSERIRE VALORE\nINSERIRE VALORE"]
[null,null,108,null,null,null,"",0,"Rotabili",0.6,null,null,null,null,null,null,null,null,108,null,null,null,null,null,null,1,0,0,"\nINSERIRE VALORE",null,null,""]
[76,"Tipografie, litografie, stampa in offset ed attività similari con oltre cinque addett",109,"Superficie","m²",6,"Non Def.",1,"Non Def.",1,1000,0.1,null,null,null,null,null,null,109,null,null,null,null,null,null,0,0,1,"Non Def.",null,null,"Non Def."]
[77,"Edifici destinati ad uso civile, con altezza antincendio superiore a 24 m",110,"Altezza","m",6,"Numero Scale\nINSERIRE VALORE","F","Non Def.",1,60,0.3,2,1,"Y = (2P-1)/P [curva asintotica verso 2]",null,null,null,110,null,null,null,null,null,null,1,0,"F","Numero Scale\nINSERIRE VALORE\nINSERIRE VALORE",null,null,"Numero Scale\nINSERIRE VALORE\nINSERIRE VALORE"]
[78,"Aerostazioni, stazioni ferroviarie, stazioni marittime, con superficie coperta accessibile al pubblico superiore a 5000 m2; metropolitane in tutto o in parte sotterranee",111,"Superficie (per aerostazioni, stazioni ecc)","m²",8,"Aerostazione",3,"Non Def.",1,5000,0.4,null,null,null,null,null,null,111,null,null,null,null,null,null,0,0,3,"Aerostazione",null,null,"Aerostazione"]
[null,null,112,"N. Fermate metropolitane","n",40000,"Stazione Ferroviaria",1,null,null,null,null,null,null,null,null,null,null,112,null,null,null,null,null,null,0,0,1,"Stazione Ferroviaria",null,null,"Stazione Ferroviaria"]
[79,"Interporti con superficie superiore a 20.000 m²",113,"Superficie","m²",4,"Non Def.",1,"Non Def.",1,50000,0.1,null,null,null,null,null,null,113,null,null,null,null,null,null,0,0,1,"Non Def.",null,null,"Non Def."]
[80,"Gallerie stradali di lunghezza superiore a 500 m e ferroviarie superiori a 2000 ",114,"Lunghezza","m",100,"Autostradale",3,"Non Def.",1,null,null,null,null,null,null,null,null,{"$f":"+C114","v":114},null,null,null,null,null,null,0,0,3,"Autostradale",null,null,"Autostradale"]
[null,null,115,null,null,null,"Ferroviaria",1,null,null,null,null,null,null,null,null,null,null,{"$f":"+C115","v":115},null,null,null,null,null,null,0,0,1,"Ferroviaria",null,null,"Ferroviaria"]
[81,null,116]

{"sheet":"MULTI ATTIVITA","index":3,"n_rows":30,"n_cols":46,"rows_kept":30,"cut":false,"hidden":true,"merged":[[0,5,0,9],[15,3,15,12],[24,5,24,6]]}
[null,null,null,null,null,"PARAMETRI"]
["Num.","Attività","Descrizione","Sottotipo","Un.Mis","Principale [S]","Agg. 1 (X)","Valore","Agg. 2 (Y)","Valore","NORMA","DEROGA","Totale",null,null,null,null,null,null,null,null,null,null,null,null,null,"rif.RigaIn","Rif.RigaFin","Ind.Sottotipo","Fatt. Corr","Par.Agg1","Par.X","Par.Agg2","Par.Y","Limite","Eccedenza","PAR X","PAR Y","Par. Princ","PER ATT. 68",null,null,"Nomrata","der"]
[1,12,{"$f":"+VLOOKUP($B3,TabAtt,2,FALSE)","v":"Depositi e/o rivendite di liquidi infiammabili e/o combustibili e/o oli lubrificanti, diatermici, di qualsiasi derivazione, di capacità geometrica complessiva superiore a 1 m3"},"Volume",{"$f":"+VLOOKUP(D3,INDIRECT(ADDRESS(AA3,4,1,,\"PARAMETRI ATTIVITA\") & \":\" & +ADDRESS(AA3+5,12,1,,)),2,FALSE)","v":"m³"},3000,"Infiammabile",500,"Solo deposito",0,"Prescrittiva","no",{"$f":"IFERROR(IF(AI3=0,+SQRT(AM3*AD3)*AF3*AH3,IF(AM3-AI3<0,+SQRT((AM3+AN3)*AD3)*AF3*AH3,SQRT((AI3+AN3+(AM3-AI3)*AJ3)*AD3))*AF3*AH3),0)*PRODUCT(AQ3:AR3)","v":362.80159867343474},null,null,null,null,null,null,null,null,null,null,null,null,null,{"$f":"+VLOOKUP($B3,TabAtt,3,FALSE)","v":20},{"$f":"+VLOOKUP($B3+1,TabAtt,3,FALSE)-AA3","v":2},{"$f":"+ADDRESS(AA3,4,1,,\"PARAMETRI ATTIVITA\")","v":"'PARAMETRI ATTIVITA'!$D$20"},{"$f":"+VLOOKUP(D3,INDIRECT(ADDRESS(AA3,4,1,,\"PARAMETRI ATTIVITA\") & \":\" & +ADDRESS(AA3+5,12,1,,)),3,FALSE)","v":150},{"$f":"+ADDRESS(AA3,7,1,,\"PARAMETRI ATTIVITA\")","v":"'PARAMETRI ATTIVITA'!$G$20"},{"$f":"+IF(AP3=\"F\",IF((H3*AK3-AL3)/H3<0,1,(H3*AK3-AL3)/H3),AP3)","v":1.5},{"$f":"+ADDRESS(AA3,9,1,,\"PARAMETRI ATTIVITA\")","v":"'PARAMETRI ATTIVITA'!$I$20"},{"$f":"++IF(B3=68,1,VLOOKUP(I3,INDIRECT(ADDRESS(AA3,9,1,,\"PARAMETRI ATTIVITA\") & \":\" & +ADDRESS(AA3+5,108,1,,)),2,FALSE))","v":1},{"$f":"+VLOOKUP(D3,INDIRECT(ADDRESS(AA3,4,1,,\"PARAMETRI ATTIVITA\") & \":\" & +ADDRESS(AA3+5,12,1,,)),8,FALSE)","v":100},{"$f":"+VLOOKUP(D3,INDIRECT(ADDRESS(AA3,4,1,,\"PARAMETRI ATTIVITA\") & \":\" & +ADDRESS(AA3+5,12,1,,)),9,FALSE)","v":0.1},{"$f":"+IF(ISERROR(VLOOKUP($B3,TabAtt,13,FALSE))=FALSE,VLOOKUP($B3,TabAtt,13,FALSE),1)","v":0},{"$f":"+IF(ISERROR(VLOOKUP($B3,TabAtt,14,FALSE))=FALSE,VLOOKUP($B3,TabAtt,14,FALSE),1)","v":0},{"$f":"+F3","v":3000},{"$f":"+IF(B3=68,H3*VLOOKUP(G3,INDIRECT(ADDRESS(AA3,7,1,,\"PARAMETRI ATTIVITA\") & \":\" & +ADDRESS(AA3+5,8,1,,)),2,FALSE)+J3*VLOOKUP(I3,INDIRECT(ADDRESS(AA3,9,1,,\"PARAMETRI ATTIVITA\") & \":\" & +ADDRESS(AA3+5,108,1,,)),2,FALSE),0)","v":0},null,{"$f":"+IF(B3=68,1,VLOOKUP(G3,INDIRECT(ADDRESS(AA3,7,1,,\"PARAMETRI ATTIVITA\") & \":\" & +ADDRESS(AA3+5,8,1,,)),2,FALSE))","v":1.5},{"$f":"+VLOOKUP(K3,$AC$17:$AD$19,2,FALSE)","v":1},{"$f":"+VLOOKUP(L3,$AE$17:$AH$18,2,FALSE)","v":1},{"$f":"+VLOOKUP(T3,$AE$17:$AH$18,3,FALSE)","v":{"$error":"#N/A"}},{"$f":"+VLOOKUP(U3,$AE$17:$AH$18,4,FALSE)","v":{"$error":"#N/A"}}]
[{"$f":"+IF(B4=\"\",\"\",A3+1)","v":2},73,"Edifici e/o complessi edilizi a uso terziario e/o industriale caratterizzati da promiscuità strutturale e/o dei sistemi delle vie di esodo e/o impiantistica con presenza di persone superiore a 300 unità, ovvero di superficie complessiva superiore a 5000 m2, indipendentemente dal numero di attività costituenti e dalla relativa diversa titolarità","Superficie","m²",1000,"Attività interne soggette",50,"Non Def.",0,"Non Normato","no",{"$f":"IFERROR(IF(AI4=0,+SQRT(AM4*AD4)*AF4*AH4,IF(AM4-AI4<0,+SQRT((AM4+AN4)*AD4)*AF4*AH4,SQRT((AI4+AN4+(AM4-AI4)*AJ4)*AD4))*AF4*AH4),0)*PRODUCT(AQ4:AR4)","v":3.0357865537616449},null,null,null,null,null,null,null,null,null,null,null,null,null,104,2,"'PARAMETRI ATTIVITA'!$D$104",4,"'PARAMETRI ATTIVITA'!$G$104",0.2,"'PARAMETRI ATTIVITA'!$I$104",1,1500,0.1,0,0,1000,0,null,{"$f":"+IF(B4=68,1,VLOOKUP(G4,INDIRECT(ADDRESS(AA4,7,1,,\"PARAMETRI ATTIVITA\") & \":\" & +ADDRESS(AA4+5,8,1,,)),2,FALSE))","v":0.2},{"$f":"+VLOOKUP(K4,$AC$17:$AD$19,2,FALSE)","v":1.2},{"$f":"+VLOOKUP(L4,$AE$17:$AH$18,2,FALSE)","v":1}]
[{"$f":"+IF(B5=\"\",\"\",A4+1)","v":3},70,"Locali adibiti a depositi di superficie lorda superiore a 1000 m2 con quantitativi di merci e materiali combustibili superiori complessivamente a 5000 kg","Volume",{"$error":"#N/A"},3000,"Solo Deposito",100,"Non Direttiva Seveso",0,"Non Normato","no",0,null,null,null,null,null,null,null,null,null,null,null,null,null,100,1,"'PARAMETRI ATTIVITA'!$D$100",{"$error":"#N/A"},"'PARAMETRI ATTIVITA'!$G$100",{"$error":"#N/A"},"'PARAMETRI ATTIVITA'!$I$100",{"$error":"#N/A"},{"$error":"#N/A"},{"$error":"#N/A"},2,5,3000,0,null,{"$error":"#N/A"},1.2,1]
[4,10,"Stabilimenti ed impianti ove si producono e/o impiegano, liquidi infiammabili e/o combustibili con punto di infiammabilità fino a 125 °C, con quantitativi globali in ciclo e/o in deposito superiori a 1 m3","Volume","m³",300,"Infiammabile",100,"Solo deposito",0,"Prescrittiva","no",268.32815729997475,null,null,null,null,null,null,null,null,null,null,null,null,null,16,2,"'PARAMETRI ATTIVITA'!$D$16",150,"'PARAMETRI ATTIVITA'!$G$16",2,"'PARAMETRI ATTIVITA'!$I$16",1,100,0.1,0,0,300,0,null,{"$f":"+IF(B6=68,1,VLOOKUP(G6,INDIRECT(ADDRESS(AA6,7,1,,\"PARAMETRI ATTIVITA\") & \":\" & +ADDRESS(AA6+5,8,1,,)),2,FALSE))","v":2},1,1]
["",null,{"$error":"#N/A"},"Superficie",{"$error":"#N/A"},300,"Persone",100,"Non Def.",0,"Non Normato","no",0,null,null,null,null,null,null,null,null,null,null,null,null,null,{"$error":"#N/A"},{"$error":"#N/A"},{"$error":"#N/A"},{"$error":"#N/A"},{"$error":"#N/A"},{"$error":"#N/A"},{"$error":"#N/A"},{"$error":"#N/A"},{"$error":"#N/A"},{"$error":"#N/A"},1,1,300,0,null,{"$f":"+IF(B7=68,1,VLOOKUP(G7,INDIRECT(ADDRESS(AA7,7,1,,\"PARAMETRI ATTIVITA\") & \":\" & +ADDRESS(AA7+5,8,1,,)),2,FALSE))","v":{"$error":"#N/A"}},1.2,1]
["",null,{"$error":"#N/A"},"Superficie",{"$error":"#N/A"},300,"Infiammabile",100,"Dep. + rivendita",0,"Non Normato","no",0,null,null,null,null,null,null,null,null,null,null,null,null,null,{"$error":"#N/A"},{"$error":"#N/A"},{"$error":"#N/A"},{"$error":"#N/A"},{"$error":"#N/A"},{"$error":"#N/A"},{"$error":"#N/A"},{"$error":"#N/A"},{"$error":"#N/A"},{"$error":"#N/A"},1,1,300,0,null,{"$f":"+IF(B8=68,1,VLOOKUP(G8,INDIRECT(ADDRESS(AA8,7,1,,\"PARAMETRI ATTIVITA\") & \":\" & +ADDRESS(AA8+5,8,1,,)),2,FALSE))","v":{"$error":"#N/A"}},1.2,1]
[null,null,null,null,null,null,null,null,null,"TOTALE",null,null,{"$f":"SUM(M3:M8)","v":634.16554252717106},null,null,null,null,null,null,null,null,null,null,null,null,null,null,null,{"$f":"+ADDRESS(AA3,4,1,,\"PARAMETRI ATTIVITA\") & \":\" & +ADDRESS(AA3+5,12,1,,)","v":"'PARAMETRI ATTIVITA'!$D$20:$L$25"}]
[]
[]
[]
[null,null,null,null,null,null,null,null,null,null,null,null,null,null,null,null,null,null,null,null,null,null,null,null,null,null,null,null,null,null,null,null,null,null,null,null,{"$f":"+ISERROR(VLOOKUP($B3,TabAtt,13,FALSE))","v":false}]
[null,"INSERISCI",null,"INSERISCI",null,"INSERISCI","CONTROLLA",null,"CONTROLLA",null,null,null,"SE X o Y NON ESISTONO",null,null,null,null,null,null,null,null,null,null,null,null,null,null,null,{"$f":"+IF(F9>0,IF((F3-F9)>0,\"(\" & F9 & \" + \"&F3-F9&\" x \" & F10 &\")x\" & F11,F3 & \"x \" & F11),F3)","v":3000},{"$f":"+IF(G3=\"non def.\",\"\",\" x\" &TEXT(H10,\"#0,00\"))","v":" x0,00"},{"$f":"+IF(I3=\"non def.\",\"\",\" x\" & TEXT(J10,\"#0,00\"))","v":" x0,00"}]
[null,"ATTIVITA'",null,"SOTTOTIPO",null,"QUANTITA'","SE ESISTE X",null,"SE ESISTE Y",null,null,null,"SELEZIONA NON DEF."]
[null,null,null,null,null,null,null,null,null,null,null,null,null,null,null,null,null,null,null,null,null,null,null,null,null,null,null,null,null,null,null,"nof","der","fse"]
[null,null,null,null,null,null,null,null,null,null,null,null,null,null,null,null,null,null,null,null,null,null,null,null,null,null,null,null,"Non Normato",1.2,"si",1.2,1.5,2]
[null,null,null,null,null,null,null,null,null,null,null,null,null,null,null,null,null,null,null,null,null,null,null,null,null,null,null,null,"Prescrittiva",1,"no",1,1,1]
[null,null,null,null,null,null,null,null,null,null,null,null,null,null,null,null,null,null,null,null,null,null,null,null,null,null,null,null,"Prestazionale",1.5]
[null,null,null,"Parametro Attività","N. ATTIVITA'","FORMULA?",null,null,"Costo Orario"]
[null,null,null,{"$f":"+M9","v":634.16554252717106},{"$f":"+MAX(A3:A8)","v":4},null,null,null,50,null,null,null,null,null,null,null,null,null,null,null,null,null,null,null,null,null,null,null,null,{"$f":"+VLOOKUP(E21,$AC$17:$AD$19,2,FALSE)","v":{"$error":"#N/A"}},{"$f":"+VLOOKUP(F21,$AE$17:$AH$18,2,FALSE)","v":{"$error":"#N/A"}},{"$f":"+VLOOKUP(G21,$AE$17:$AH$18,3,FALSE)","v":{"$error":"#N/A"}},{"$f":"+VLOOKUP(H21,$AE$17:$AH$18,4,FALSE)","v":{"$error":"#N/A"}}]
[]
[]
[null,null,7]
[null,null,null,null,"Compenso =",{"$f":"+D21*F21*I21","v":0}]
[]
[]
[]
[]
[null,null,null,null,null,null,null,null,null,{"$f":"1372*1.22","v":1673.84}]

{"sheet":"PARAMETRI ATTIVITA (2)","index":4,"n_rows":115,"n_cols":36,"rows_kept":115,"cut":false,"hidden":true,"merged":[[112,10,113,11],[112,6,113,7],[98,10,98,11],[99,10,99,11],[100,10,101,11],[110,6,110,7],[109,10,110,11],[111,8,111,9],[104,6,104,7],[111,10,111,11],[107,8,107,9],[112,3,113,3],[112,4,113,4],[112,5,113,5],[104,8,104,9],[105,8,106,8],[105,9,106,9],[107,10,107,11],[108,10,108,11],[96,10,96,11],[97,10,97,11],[102,10,103,11],[104,10,104,11],[102,3,103,3],[102,4,103,4],[102,5,103,5],[102,6,103,6],[102,7,103,7],[105,3,106,3],[105,4,106,4],[105,5,106,5],[105,6,106,6],[105,7,106,7],[96,3,97,3],[96,4,97,4],[96,5,97,5],[96,6,97,6],[96,7,97,7],[100,3,101,3],[100,4,101,4],[100,5,101,5],[100,6,101,6],[100,7,101,7],[90,10,90,11],[91,10,91,11],[92,10,92,11],[93,10,93,11],[94,10,94,11],[91,8,91,9],[86,8,86,9],[87,8,87,9],[88,8,88,9],[89,8,89,9],[86,10,86,11],[87,10,87,11],[88,10,88,11],[89,10,89,11],[84,3,85,3],[84,4,85,4],[84,5,85,5],[84,6,85,6],[84,7,85,7],[84,10,85,11],[80,8,80,9],[81,8,81,9],[82,8,82,9],[83,8,83,9],[80,10,80,11],[81,10,81,11],[82,10,82,11],[83,10,83,11],[78,3,79,3],[78,4,79,4],[78,5,79,5],[78,6,79,6],[78,7,79,7],[78,10,79,11],[75,8,75,9],[75,10,75,11],[76,8,76,9],[76,10,76,11],[77,8,77,9],[77,10,77,11],[73,3,74,3],[73,4,74,4],[73,5,74,5],[73,10,74,11],[73,6,74,7],[69,10,69,11],[70,9,71,9],[72,6,72,7],[72,8,72,9],[72,10,72,11],[62,10,62,11],[63,8,63,9],[63,10,63,11],[64,8,65,8],[64,9,65,9],[66,9,67,9],[70,3,71,3],[70,4,71,4],[70,5,71,5],[70,6,71,6],[70,7,71,7],[64,3,65,3],[64,4,65,4],[64,5,65,5],[64,6,65,6],[64,7,65,7],[66,3,67,3],[66,4,67,4],[66,5,67,5],[66,6,67,6],[66,7,67,7],[50,8,51,8],[50,9,51,9],[52,8,53,8],[52,9,53,9],[55,8,56,8],[55,9,56,9],[50,3,51,3],[50,4,51,4],[50,5,51,5],[50,6,51,6],[50,7,51,7],[55,6,56,6],[55,7,56,7],[52,3,53,3],[52,4,53,4],[52,5,53,5],[52,6,53,6],[52,7,53,7],[16,3,17,3],[16,4,17,4],[16,5,17,5],[40,6,41,6],[40,7,41,7],[16,6,17,6],[16,7,17,7],[22,3,23,3],[22,4,23,4],[22,5,23,5],[20,3,21,3],[20,4,21,4],[20,5,21,5],[20,6,21,6],[20,7,21,7],[40,5,41,5],[26,3,27,3],[30,3,31,3],[22,6,23,7],[40,3,41,3],[40,4,41,4],[24,4,25,4],[24,5,25,5],[24,6,25,6],[48,9,49,9],[42,3,43,3],[42,4,43,4],[42,5,43,5],[42,6,43,6],[42,7,43,7],[42,8,43,8],[42,9,43,9],[48,3,49,3],[48,4,49,4],[48,5,49,5],[48,6,49,6],[48,7,49,7],[44,8,44,9],[45,8,45,9],[48,8,49,8],[59,10,59,11],[60,3,61,3],[60,4,61,4],[60,5,61,5],[60,6,61,6],[54,10,54,11],[55,3,56,3],[55,4,56,4],[55,5,56,5],[60,7,61,7],[60,8,61,8],[60,9,61,9],[57,3,58,3],[57,4,58,4],[57,5,58,5],[57,6,58,6],[57,7,58,7],[57,8,58,8],[59,8,59,9],[57,9,58,9],[24,7,25,7],[24,10,25,11],[44,10,44,11],[45,10,45,11],[26,4,27,4],[30,4,31,4],[30,5,31,5],[26,5,27,5],[26,6,27,6],[26,7,27,7],[39,8,39,9],[32,10,32,11],[33,10,33,11],[34,10,34,11],[35,10,35,11],[36,10,36,11],[37,10,37,11],[38,10,38,11],[39,10,39,11],[33,8,33,9],[34,8,34,9],[46,10,46,11],[47,10,47,11],[42,10,43,11],[29,10,29,11],[30,10,31,11],[32,8,32,9],[28,6,28,7],[28,8,28,9],[28,10,28,11],[30,6,31,6],[30,7,31,7],[40,8,41,8],[40,9,41,9],[35,8,35,9],[36,8,36,9],[37,8,37,9],[38,8,38,9],[29,8,29,9],[15,8,15,9],[15,10,15,11],[16,10,17,11],[18,10,19,11],[18,3,19,3],[18,4,19,4],[18,5,19,5],[18,6,19,6],[10,10,11,11],[12,8,12,9],[12,10,12,11],[13,8,13,9],[13,10,13,11],[14,8,14,9],[14,10,14,11],[12,6,12,7],[13,6,13,7],[14,6,14,7],[10,3,11,3],[10,4,11,4],[10,5,11,5],[10,6,11,6],[10,7,11,7],[18,7,19,7],[102,0,103,0],[105,0,106,0],[109,0,110,0],[112,0,113,0],[0,0,1,0],[0,3,0,7],[5,6,5,7],[70,0,71,0],[73,0,74,0],[78,0,79,0],[84,0,85,0],[96,0,97,0],[100,0,101,0],[55,0,56,0],[57,0,58,0],[60,0,61,0],[66,0,67,0],[64,0,65,0],[30,0,31,0],[40,0,41,0],[42,0,43,0],[48,0,49,0],[50,0,51,0],[24,3,25,3],[52,0,53,0],[16,0,17,0],[18,0,19,0],[20,0,21,0],[22,0,23,0],[24,0,25,0],[26,0,27,0],[6,0,7,0],[8,0,9,0],[10,0,11,0],[4,1,5,1],[6,1,7,1],[8,1,9,1],[10,1,11,1],[0,8,0,9],[0,10,0,11],[2,0,3,0],[2,1,3,1],[4,0,5,0],[3,6,3,7],[6,3,7,3],[6,4,7,4],[6,5,7,5],[6,6,7,6],[6,7,7,7],[8,3,9,3],[8,4,9,4],[8,5,9,5],[8,6,9,6],[8,7,9,7]]}
["N. Attività",null,null,"Parametro Principale (SxK)",null,null,null,null,"Parametro (X)",null,"Parametro (Y)"]
[null,"Descrizione Attività","RifRiga","Tipologia","Un.Mis","K","Limite","Ecc.","Tipologia","Valore","Tipologia","Valore",null,null,"Asintoto","Partenza",null,null,null,null,null,"=SCARTO(INDIRETTO($X$2);0;0;$I$14)",null,null,null,null,null,"x NEC","Y NEC","F",null,null,"SEL Y",null,null,"SEL X"]
[1,"Stabilimenti ed impianti ove si producono e/o impiegano gas infiammabili e/o comburenti con quantità globali in ciclo superiori a 25 Nm3/h",{"$f":"+ROW(A3)","v":3},"Stabilimento [Superficie]","m²",6,1000,0.2,"Infiammabile",2,"Direttiva Seveso",3,null,null,null,null,null,null,null,null,{"$f":"+C3","v":3},"=SCARTO(\"D\" & $V2 ;0;0;$W$2)",null,null,null,null,null,0,0,{"$f":"+IF(O3=\"\",J3,\"F\")","v":2},{"$f":"+IF(AB3=1,I3 & CHAR(10) &  \"\",I3)","v":"Infiammabile"},null,{"$f":"+VLOOKUP($X3,A3:T23,8)","v":{"$error":"#N/A"}},{"$f":"+IF(I3=\"\",\"\",AE3)","v":"Infiammabile"}]
[null,null,{"$f":"+ROW(A4)","v":4},"Solo Deposito [Quantità]","Nm³",100,null,null,"Comburente",1,"Non Direttiva Seveso",1,null,null,null,null,null,null,null,null,4,null,null,null,null,null,null,0,0,{"$f":"+IF(O4=\"\",J4,\"F\")","v":1},"Comburente",null,null,{"$f":"+IF(I4=\"\",\"\",AE4)","v":"Comburente"}]
[2,"Impianti di compressione o di decompressione dei gas infiammabili e/o comburenti con potenzialità superiore a 50 Nm3/h, con esclusione dei sistemi di riduzione del gas naturale inseriti nelle reti di distribuzione con pressione di esercizio non superiore a 0,5 MPa",{"$f":"+ROW(A5)","v":5},"Ciclo [Superficie]","m²",6,1000,0.2,"Infiammabile",2,"Direttiva Seveso",3,null,null,null,null,null,null,null,null,5,null,null,null,null,null,null,0,0,2,"Infiammabile",null,null,"Infiammabile"]
[null,null,6,"Solo Deposito [Quantità]","Nm³",4,null,null,"Comburente",1,"Non Direttiva Seveso",1,null,null,null,null,null,null,null,null,6,null,null,null,null,null,null,0,0,1,"Comburente",null,null,"Comburente"]
[3,"Impianti di riempimento, depositi, rivendite di gas infiammabili in recipienti mobili: compressi con capacità geometrica complessiva superiore o uguale a 0,75 m3; disciolti o liquefatti per quantitativi in massa complessivi superiori o uguali a 75 kg",7,"Superficie","m²",6,200,0.1,"Solo Deposito",1,"Direttiva Seveso",3,null,null,null,null,null,null,null,null,7,null,null,null,null,null,null,0,0,1,"Solo Deposito",null,null,"Solo Deposito"]
[null,null,8,null,null,null,null,null,"Deposito e rivendita",1.2,"Non Direttiva Seveso",1,null,null,null,null,null,null,null,null,8,null,null,null,null,null,null,0,0,1.2,"Deposito e rivendita",null,null,"Deposito e rivendita"]
[4,"Depositi di gas infiammabili in serbatoi fissi: compressi per capacità geometrica complessiva superiore o uguale a 0, 75 m3; disciolti o liquefatti per capacità geometrica complessiva superiore o uguale a 0,3 m3",9,"Volume","m³",300,200,0.1,"Solo Deposito",1,"Direttiva Seveso",3,null,null,null,null,null,null,null,null,9,null,null,null,null,null,null,0,0,1,"Solo Deposito",null,null,"Solo Deposito"]
[null,null,10,null,null,null,null,null,"Deposito e rivendita",1.2,"Non Direttiva Seveso",1,null,null,null,null,null,null,null,null,10,null,null,null,null,null,null,0,0,1.2,"Deposito e rivendita",null,null,"Deposito e rivendita"]
[5,"Depositi di gas comburenti compressi e/o liquefatti in serbatoi fissi e/o recipienti mobili per capacità geometrica complessiva superiore o uguale a 3 m3",11,"Capacità","m³",300,200,0.1,"Direttiva Seveso",3,null,null,null,null,null,null,null,null,null,null,11,null,null,null,null,null,null,0,0,3,"Direttiva Seveso",null,null,"Direttiva Seveso"]
[null,null,12,null,null,null,null,null,"Non Direttiva Seveso",1,null,null,null,null,null,null,null,null,null,null,12,null,null,null,null,null,null,0,0,1,"Non Direttiva Seveso",null,null,"Non Direttiva Seveso"]
[6,"Reti di trasporto e di distribuzione di gas infiammabili, compresi quelli di origine petrolifera o chimica, con esclusione delle reti di distribuzione e dei relativi impianti con pressione di esercizio non superiore a 0,5 Mpa",13,"Colonnine?","n",100,null,null,null,null,null,null,null,null,null,null,null,null,null,null,13,null,null,null,null,null,null,0,0,0,0,null,null,""]
[7,"Centrali di produzione di idrocarburi liquidi e gassosi e di stoccaggio sotterraneo di gas naturale, piattaforme fisse e strutture fisse assimilabili, di perforazione e/o produzione di idrocarburi di cui al decreto del Presidente della Repubblica 24 maggio 1979, n. 886 ed al decreto legislativo 25 novembre 1996, n. 624",14,"Superficie?","m²",8,null,null,null,null,null,null,null,null,null,null,null,null,null,null,14,null,null,null,null,null,null,0,0,0,0,null,null,""]
[8,"Oleodotti con diametro superiore a 100 mm",15,"Estensione","m",20,null,null,null,null,null,null,null,null,null,null,{"$f":"+VLOOKUP(H15,INDIRECT(G15),2,FALSE)","v":{"$error":"#REF!"}},null,null,null,15,null,null,null,null,null,null,0,0,0,0,null,null,""]
[9,"Officine e laboratori con saldatura e taglio dei metalli utilizzanti gas infiammabili e/o comburenti, con oltre 5 addetti alla mansione specifica di saldatura o taglio",16,"Superficie","m²",4,1000,0.2,null,null,null,null,null,null,null,null,null,null,null,null,16,null,null,null,null,null,null,0,0,0,0,null,null,""]
[10,"Stabilimenti ed impianti ove si producono e/o impiegano, liquidi infiammabili e/o combustibili con punto di infiammabilità fino a 125 °C, con quantitativi globali in ciclo e/o in deposito superiori a 1 m3",17,"Superficie","m²",6,1000,0.1,"Infiammabile",2,null,null,null,null,null,null,null,null,null,null,17,null,null,null,null,null,null,0,0,2,"Infiammabile",null,null,"Infiammabile"]
[null,null,18,null,null,null,null,null,"Combustibile",1,null,null,null,null,null,null,null,null,null,null,18,null,null,null,null,null,null,0,0,1,"Combustibile",null,null,"Combustibile"]
[11,"Stabilimenti ed impianti per la preparazione di oli lubrificanti, oli diatermici e simili, con punto di infiammabilità superiore a 125 °C, con quantitativi globali in ciclo e/o in deposito superiori a 5 m3",19,"Superficie","m²",6,1000,0.1,"Infiammabile",2,null,null,null,null,null,null,null,null,null,null,19,null,null,null,null,null,null,0,0,2,"Infiammabile",null,null,"Infiammabile"]
[null,null,20,null,null,null,null,null,"Combustibile",1,null,null,null,null,null,null,null,null,null,null,20,null,null,null,null,null,null,0,0,1,"Combustibile",null,null,"Combustibile"]
[12,"Depositi e/o rivendite di liquidi infiammabili e/o combustibili e/o oli lubrificanti, diatermici, di qualsiasi derivazione, di capacità geometrica complessiva superiore a 1 m3",21,"Volume","m³",150,100,0.1,"Infiammabile",1.5,"Solo deposito",1,null,null,null,null,null,null,null,null,21,null,null,null,null,null,null,0,0,1.5,"Infiammabile",null,null,"Infiammabile"]
[null,null,22,null,null,null,null,null,"Combustibile",1,"Dep. + rivendita",1.5,null,null,null,null,null,null,null,null,22,null,null,null,null,null,null,0,0,1,"Combustibile",null,null,"Combustibile"]
[13,"Impianti fissi di distribuzione carburanti per l'autotrazione, la nautica e l'aeronautica; contenitori - distributori rimovibili di carburanti liquidi: Impianti di distribuzione carburanti liquidi;  Impianti fissi di distribuzione carburanti gassosi e di tipo misto (liquidi e gassosi).",23,"Colonnine","n",100,null,null,"Infiammabile",1.5,"Solo Liquidi",1,null,null,null,null,null,null,null,null,23,null,null,null,null,null,null,0,0,1.5,"Infiammabile",null,null,"Infiammabile"]
[null,null,24,null,null,null,null,null,"Combustibile",1,"Liquidi e Gas",1.5,null,null,null,null,null,null,null,null,24,null,null,null,null,null,null,0,0,1,"Combustibile",null,null,"Combustibile"]
[14,"Officine o laboratori per la verniciatura con vernici infiammabili e/o combustibili con oltre 5 addetti.",25,"Superficie","m²",4,300,0.1,"Infiammabile",1.5,null,null,null,null,null,null,null,null,null,null,25,null,null,null,null,null,null,0,0,1.5,"Infiammabile",null,null,"Infiammabile"]
[null,null,26,null,null,null,null,null,"Combustibile",1,null,null,null,null,null,null,null,null,null,null,26,null,null,null,null,null,null,0,0,1,"Combustibile",null,null,"Combustibile"]
[15,"Depositi e/o rivendite di alcoli con concentrazione superiore al 60% in volume di capacità geometrica superiore a 1 m3",27,"Volume","m³",150,100,0.1,"Infiammabile",1.5,"Solo deposito",1,null,null,null,null,null,null,null,null,27,null,null,null,null,null,null,0,0,1.5,"Infiammabile",null,null,"Infiammabile"]
[null,null,28,null,null,null,null,null,"Combustibile",1,"Dep. + rivendita",1.5,null,null,null,null,null,null,null,null,28,null,null,null,null,null,null,0,0,1,"Combustibile",null,null,"Combustibile"]
[16,"Stabilimenti di estrazione con solventi infiammabili e raffinazione di oli e grassi vegetali ed animali, con quantitativi globali di solventi in ciclo e/o in deposito superiori a 0,5 m3",29,"Superficie?","m²",6,null,null,null,null,null,null,null,null,null,null,null,null,null,null,29,null,null,null,null,null,null,0,0,0,0,null,null,""]
[17,"Stabilimenti ed impianti ove si producono, impiegano o detengono sostanze esplodenti classificate come tali dal regolamento di esecuzione del testo unico delle leggi di pubblica sicurezza approvato con regio decreto 6 maggio 1940, n. 635, e successive modificazioni ed integrazioni",30,"Superficie","m²",8,1000,0.1,null,null,null,null,null,null,null,null,null,null,null,null,30,null,null,null,null,null,null,0,0,0,0,null,null,""]
[18,"Esercizi di minuta vendita e/o depositi di sostanze esplodenti classificate come tali dal regolamento di esecuzione del testo unico delle leggi di pubblica sicurezza approvato con regio decreto 6 maggio 1940, n. 635, e successive modificazioni ed integrazioni. Esercizi di vendita di artifici pirotecnici declassificati in \"libera vendita\" con quantitativi complessivi in vendita e/o deposito superiori a 500 kg, comprensivi degli imballaggi;",31,"Superficie","m²",8,1000,0.1,"Libera vendita",1,null,null,null,null,null,null,null,null,null,null,31,null,null,null,null,null,null,0,0,1,"Libera vendita",null,null,"Libera vendita"]
[null,null,32,null,null,null,null,null,"Non Libera vend.",2,null,null,null,null,null,null,null,null,null,null,32,null,null,null,null,null,null,0,0,2,"Non Libera vend.",null,null,"Non Libera vend."]
[19,"Stabilimenti ed impianti ove si producono, impiegano o detengono sostanze instabili che possono dar luogo da sole a reazioni pericolose in presenza o non di catalizzatori ivi compresi i perossidi organici",33,"Superficie?","m²",8,5000,0.1,null,null,null,null,null,null,null,null,"Potremmo mettere i Kg invece della superficie?",null,null,null,33,null,null,null,null,null,null,0,0,0,0,null,null,""]
[20,"Stabilimenti ed impianti ove si producono, impiegano o detengono nitrati di ammonio, di metalli alcalini e alcolino-terrosi, nitrato di piombo e perossidi inorganici",34,"Superficie?","m²",8,5000,0.1,null,null,null,null,null,null,null,null,"Potremmo mettere i Kg invece della superficie?",null,null,null,34,null,null,null,null,null,null,0,0,0,0,null,null,""]
[21,"Stabilimenti ed impianti ove si producono, impiegano o detengono sostanze soggette all'accensione spontanea e/o sostanze che a contatto con l'acqua sviluppano gas infiammabili",35,"Superficie?","m²",8,5000,0.1,null,null,null,null,null,null,null,null,"Potremmo mettere i Kg invece della superficie?",null,null,null,35,null,null,null,null,null,null,0,0,0,{"$f":"+IF(AB35=1,I35 & CHAR(10) &  \"\",I35)","v":0},null,null,""]
[22,"Stabilimenti ed impianti ove si produce acqua ossigenata con concentrazione superiore al 60% di perossido di idrogeno",36,"Superficie?","m²",8,5000,0.1,null,null,null,null,null,null,null,null,"Potremmo mettere i m³ invece della superficie?",null,null,null,36,null,null,null,null,null,null,0,0,0,0,null,null,""]
[23,"Stabilimenti ed impianti ove si produce, impiega e/o detiene fosforo e/o sesquisolfuro di fosforo",37,"Superficie?","m²",8,5000,0.1,null,null,null,null,null,null,null,null,"Potremmo mettere i Kg invece della superficie?",null,null,null,37,null,null,null,null,null,null,0,0,0,0,null,null,""]
[24,"Stabilimenti ed impianti per la macinazione e la raffinazione dello zolfo; depositi di zolfo con potenzialità superiore a 10.000 kg",38,"Superficie?","m²",8,5000,0.1,null,null,null,null,null,null,null,null,"Potremmo mettere i Kg invece della superficie?",null,null,null,38,null,null,null,null,null,null,0,0,0,0,null,null,""]
[25,"Fabbriche di fiammiferi; depositi di fiammiferi con quantitativi in massa superiori a 500 kg",39,"Superficie?","m²",8,5000,0.1,null,null,null,null,null,null,null,null,"Potremmo mettere i Kg invece della superficie?",null,null,null,39,null,null,null,null,null,null,0,0,0,0,null,null,""]
[26,"Stabilimenti ed impianti ove si produce, impiega o detiene magnesio, elektron e altre leghe ad alto tenore di magnesio",40,"Superficie?","m²",8,5000,0.1,null,null,null,null,null,null,null,null,"Potremmo mettere i Kg invece della superficie?",null,null,null,40,null,null,null,null,null,null,0,0,0,0,null,null,""]
[27,"Mulini per cereali ed altre macinazioni con potenzialità giornaliera superiore a 20.000 kg; Depositi di cereali e di altre macinazioni con quantitativi in massa superiori a 50.000 kg",41,"Superficie","m²",6,1000,0.1,"massa [t] Q",{"$f":"+\"X =(\" &O41&\"Q-\"&P41&\")/Q)\"","v":"X =(2Q-20)/Q)"},"Deposito solamente",0.6,null,null,2,20,"Y = (2Q-20)/Q [curva asintotica verso 2]",null,null,null,41,null,null,null,null,null,"Y = (2Q-20)/Q",1,0,"F","massa [t] Q\n",null,null,"massa [t] Q\n"]
[null,null,42,null,null,null,null,null,null,null,"Dep. + mulino",1,null,null,null,null,null,null,null,null,42,null,null,null,null,null,null,1,0,0,"\n",null,null,""]
[28,"Impianti per l'essiccazione di cereali e di vegetali in genere con depositi di prodotto essiccato con quantitativi in massa superiori a 50.000 kg",43,"Superficie","m²",6,1000,0.1,"massa [t] Q",{"$f":"+\"X =(\" &O43&\"Q-\"&P43&\")/Q)\"","v":"X =(2Q-50)/Q)"},null,null,null,null,2,50,"Y = (2Q-50)/Q [curva asintotica verso 2]",null,null,null,43,null,null,null,null,null,null,1,0,"F","massa [t] Q\n",null,null,"massa [t] Q\n"]
[null,null,44,null,null,null,null,null,"",null,null,null,null,null,null,null,null,null,null,null,44,null,null,null,null,null,null,1,0,0,"\n",null,null,""]
[29,"Stabilimenti ove si producono surrogati del caff",45,"Superficie?","m²",6,2000,0.1,null,null,null,null,null,null,null,null,null,null,null,null,45,null,null,null,null,null,null,0,0,0,0,null,null,""]
[30,"Zuccherifici e raffinerie dello zucchero",46,"Superficie?","m²",6,2000,0.1,null,null,null,null,null,null,null,null,null,null,null,null,46,null,null,null,null,null,null,0,0,0,0,null,null,""]
[31,"Pastifici e/o riserie con produzione giornaliera superiore a 50.000 kg",47,"Superficie?","m²",6,2000,0.1,"massa [t] Q",{"$f":"+\"X =(\" &O47&\"Q-\"&P47&\")/Q)\"","v":"X =(2Q-50)/Q)"},null,null,null,null,2,50,"Y = (2Q-50)/Q [curva asintotica verso 2]",null,null,null,47,null,null,null,null,null,null,1,0,"F","massa [t] Q\n",null,null,"massa [t] Q\n"]
[32,"Stabilimenti ed impianti ove si lavora e/o detiene foglia di tabacco con processi di essiccazione con oltre 100 addetti o con quantitativi globali in ciclo e/o in deposito superiori a 50.000 kg",48,"Superficie?","m²",6,2000,0.1,"massa [t] Q",{"$f":"+\"X =(\" &O48&\"Q-\"&P48&\")/Q)\"","v":"X =(2Q-50)/Q)"},null,null,null,null,2,50,"Y = (2Q-50)/Q [curva asintotica verso 2]",null,null,null,48,null,null,null,null,null,null,1,0,"F","massa [t] Q\n",null,null,"massa [t] Q\n"]
[33,"Stabilimenti ed impianti per la produzione della carta e dei cartoni e di allestimento di prodotti cartotecnici in genere con oltre 25 addetti o con materiale in lavorazione e/o in deposito superiore a 50.000 kg",49,"Superficie","m²",6,2000,0.1,"massa [t] Q",{"$f":"+\"X =(\" &O49&\"Q-\"&P49&\")/Q)\"","v":"X =(2Q-50)/Q)"},"Deposito di carta",1,null,null,2,50,"Y = (2Q-50)/Q [curva asintotica verso 2]",null,null,null,49,null,null,null,null,null,null,1,0,"F","massa [t] Q\n",null,null,"massa [t] Q\n"]
[null,null,50,null,null,null,null,null,"",null,"Deposito e stabilimento",1.5,null,null,null,null,null,null,null,null,50,null,null,null,null,null,null,1,0,0,"\n",null,null,""]
[34,"Depositi di carta, cartoni e prodotti cartotecnici, archivi di materiale cartaceo, biblioteche, depositi per la cernita della carta usata, di stracci di cascami e di fibre tessili per l'industria della carta, con quantitativi in massa superiori a 5.000 kg",51,"Superficie","m²",4,2000,0.1,"massa [t] Q",{"$f":"+\"X =(\" &O51&\"Q-\"&P51&\")/Q)\"","v":"X =(2Q-50)/Q)"},"Depositi/archivi",1,null,null,2,50,"Y = (2Q-50)/Q [curva asintotica verso 2]",null,null,null,51,null,null,null,null,null,null,1,0,"F","massa [t] Q\n",null,null,"massa [t] Q\n"]
[null,null,null,null,null,null,null,null,"",null,"Biblioteche",2,null,null,null,null,null,null,null,null,null,null,null,null,null,null,null,1,0,0,"\n",null,null,""]
[35,"Stabilimenti, impianti, depositi ove si producono, impiegano e/o detengono carte fotografiche, calcografiche, eliografiche e cianografiche, pellicole cinematografiche, radiografiche e fotografiche con materiale in lavorazione e/o in deposito superiore a 5.000 kg",53,"Superficie","m²",6,2000,0.1,"massa [t] Q",{"$f":"+\"X =(\" &O53&\"Q-\"&P53&\")/Q)\"","v":"X =(2Q-5)/Q)"},"Solo deposito",1,null,null,2,5,"Y = (2Q-5)/Q [curva asintotica verso 2]",null,null,null,53,null,null,null,null,null,null,1,0,"F","massa [t] Q\n",null,null,"massa [t] Q\n"]
[null,null,54,null,null,null,null,null,"",null,"Deposito e Impianto",1.3,null,null,null,null,null,null,null,null,54,null,null,null,null,null,null,1,0,0,"\n",null,null,""]
[36,"Depositi di legnami da costruzione e da lavorazione, di legna da ardere, di paglia, di fieno, di canne, di fascine, di carbone vegetale e minerale, di carbonella, di sughero e di altri prodotti affini con quantitativi in massa superiori a 50.000 kg con esclusione dei depositi all'aperto con distanze di sicurezza esterne superiori a 100 m",55,"Superficie","m²",4,1000,0.1,"massa [t] Q",{"$f":"+\"X =(\" &O55&\"Q-\"&P55&\")/Q)\"","v":"X =(2Q-50)/Q)"},null,null,null,null,2,50,"Y = (2Q-50)/Q [curva asintotica verso 2]",null,null,null,55,null,null,null,null,null,null,1,0,"F","massa [t] Q\n",null,null,"massa [t] Q\n"]
[37,"Stabilimenti e laboratori per la lavorazione del legno con materiale in lavorazione e/o in deposito superiore a 5.000 kg",56,"Superficie","m²",7,1000,0.1,"massa [t] Q",{"$f":"+\"X =(\" &O56&\"Q-\"&P56&\")/Q)\"","v":"X =(2Q-5)/Q)"},"Solo deposito",1,null,null,2,5,"Y = (2Q-5)/Q [curva asintotica verso 2]",null,null,null,56,null,null,null,null,null,null,1,0,"F","massa [t] Q\n",null,null,"massa [t] Q\n"]
[null,null,57,null,null,null,null,null,null,null,"Dep + Laboratorio",1.5,null,null,null,null,null,null,null,null,57,null,null,null,null,null,null,1,0,0,"\n",null,null,""]
[38,"Stabilimenti ed impianti ove si producono, lavorano e/o detengono fibre tessili e tessuti naturali e artificiali, tele cerate, linoleum e altri prodotti affini, con quantitativi in massa superiori a 5.000 kg",58,"Superficie","m²",6,1000,0.1,"massa [t] Q",{"$f":"+\"X =(\" &O58&\"Q-\"&P58&\")/Q)\"","v":"X =(2Q-5)/Q)"},"Solo deposito",1,null,null,2,5,"Y = (2Q-5)/Q [curva asintotica verso 2]",null,null,null,58,null,null,null,null,null,null,1,0,"F","massa [t] Q\n",null,null,"massa [t] Q\n"]
[null,null,59,null,null,null,null,null,"",null,"Dep + Stabilimento",1.5,null,null,null,null,null,null,null,null,59,null,null,null,null,null,null,1,0,0,"\n",null,null,""]
[39,"Stabilimenti per la produzione di arredi, di abbigliamento, della lavorazione della pelle e calzaturifici, con oltre 25 addetti",60,"Superficie","m²",8,1000,0.1,null,null,null,null,null,null,null,null,null,null,null,null,60,null,null,null,null,null,null,0,0,0,0,null,null,""]
[40,"Stabilimenti ed impianti per la preparazione del crine vegetale, della trebbia e simili, lavorazione della paglia, dello sparto e simili, lavorazione del sughero, con quantitativi in massa in lavorazione o in deposito superiori a 5.000 kg",61,"Superficie","m²",8,1000,0.1,"massa [t] Q",{"$f":"+\"X =(\" &O61&\"Q-\"&P61&\")/Q)\"","v":"X =(2Q-5)/Q)"},"Solo deposito",0.6,null,null,2,5,"Y = (2Q-5)/Q [curva asintotica verso 2]",null,null,null,61,null,null,null,null,null,null,1,0,"F","massa [t] Q\n",null,null,"massa [t] Q\n"]
[null,null,62,null,null,null,null,null,null,null,"Dep + Stabilimento",1,null,null,null,null,null,null,null,null,62,null,null,null,null,null,null,1,0,0,"\n",null,null,""]
[41,"Teatri e studi per le riprese cinematografiche e televisive",63,"Superficie","m²",6,2000,0.1,null,null,null,null,null,null,null,null,null,null,null,null,63,null,null,null,null,null,null,0,0,0,0,null,null,""]
[42," Laboratori per la realizzazione di attrezzerie e scenografie, compresi i relativi depositi, di superficie complessiva superiore a 200 m2",64,"Superficie","m²",6,1000,0.1,null,null,null,null,null,null,null,null,null,null,null,null,64,null,null,null,null,null,null,0,0,0,0,null,null,""]
[43,"Stabilimenti ed impianti per la produzione, lavorazione e rigenerazione della gomma e/o laboratori di vulcanizzazione di oggetti di gomma, con quantitativi in massa superiori a 5.000 kg;  Depositi di prodotti della gomma, pneumatici e simili, con quantitativi in massa superiori a 10.000 kg",65,"Superficie","m²",6,1000,0.1,"massa [t] Q",{"$f":"+\"X =(\" &O65&\"Q-\"&P65&\")/Q)\"","v":"X =(2Q-5)/Q)"},"Solo deposito",0.6,null,null,2,5,"Y = (2Q-5)/Q [curva asintotica verso 2]",null,null,null,65,null,null,null,null,null,null,0,0,"F","massa [t] Q",null,null,"massa [t] Q"]
[null,null,66,null,null,null,null,null,null,null,"Dep + Stabilimento",1,null,null,null,null,null,null,null,null,66,null,null,null,null,null,null,0,0,0,{"$f":"+IF(AB66=1,I66 & CHAR(10) &  \"\",I66)","v":0},null,null,""]
[44,"Stabilimenti, impianti, depositi ove si producono, lavorano e/o detengono materie plastiche, con quantitativi in massa superiori a 5.000 kg",67,"Superficie","m²",6,1000,0.1,"massa [t] Q",{"$f":"+\"X =(\" &O67&\"Q-\"&P67&\")/Q)\"","v":"X =(2Q-5)/Q)"},"Solo deposito",0.6,null,null,2,5,"Y = (2Q-5)/Q [curva asintotica verso 2]",null,null,null,{"$f":"+C67","v":67},null,null,null,null,null,null,1,0,{"$f":"+IF(O67=\"\",J67,\"F\")","v":"F"},"massa [t] Q\n",null,null,{"$f":"+IF(I67=\"\",\"\",AE67)","v":"massa [t] Q\n"}]
[null,null,{"$f":"+ROW(A68)","v":68},null,null,null,null,null,"",null,"Dep + Stabilimento",1,null,null,null,null,null,null,null,null,68,null,null,null,null,null,null,1,0,0,"\n",null,null,""]
[45,"Stabilimenti ed impianti ove si producono e lavorano resine sintetiche e naturali, fitofarmaci, coloranti organici e intermedi e prodotti farmaceutici con l'impiego di solventi ed altri prodotti infiammabili",69,"Superficie","m²",6,1000,0.1,null,null,null,null,null,null,null,null,null,null,null,null,69,null,null,null,null,null,null,0,0,0,0,null,null,""]
[46,"Depositi di fitofarmaci e/o di concimi chimici a base di nitrati e/o fosfati con quantitativi in massa superiori a 50.000 kg",70,"Superficie","m²",4,300,0.1,"massa [t] Q",{"$f":"+\"X =(\" &O70&\"Q-\"&P70&\")/Q)\"","v":"X =(2Q-50)/Q)"},null,null,null,null,2,50,"Y = (2Q-50)/Q [curva asintotica verso 2]",null,null,null,70,null,null,null,null,null,null,1,0,"F","massa [t] Q\n",null,null,"massa [t] Q\n"]
[47,"Stabilimenti ed impianti per la fabbricazione di cavi e conduttori elettrici isolati, con quantitativi in lavorazione e/o in deposito superiori a 10.000 kg; Depositi e/o rivendite di cavi elettrici isolati con quantitativi superiori a 10.000 kg",71,"Superficie","m²",6,1000,0.1,"massa [t] Q",{"$f":"+\"X =(\" &O71&\"Q-\"&P71&\")/Q)\"","v":"X =(2Q-10)/Q)"},"Solo deposito",0.6,null,null,2,10,"Y = (2Q-10)/Q [curva asintotica verso 2]",null,null,null,71,null,null,null,null,null,null,1,0,"F","massa [t] Q\n",null,null,"massa [t] Q\n"]
[null,null,72,null,null,null,null,null,"",null,"Dep + impianto",1,null,null,null,null,null,null,null,null,72,null,null,null,null,null,null,0,0,0,"",null,null,""]
[48,"Centrali termoelettriche, macchine elettriche fisse con presenza di liquidi isolanti combustibili in quantitativi superiori a 1 m³",73,"Potenza ","MW",30,null,null,null,null,null,null,null,null,null,null,null,null,null,null,73,null,null,null,null,null,null,0,0,0,0,null,null,""]
[49,"Gruppi per la produzione di energia elettrica sussidiaria con motori endotermici ed impianti di cogenerazione di potenza complessiva superiore a 25 kW",74,"Potenza ","kW",4,null,null,"Isolato o all'esterno",0.6,null,null,null,null,null,null,null,null,null,null,74,null,null,null,null,null,null,0,0,0.6,"Isolato o all'esterno",null,null,"Isolato o all'esterno"]
[null,null,75,null,null,null,null,null,"All'intero di edificio",1,null,null,null,null,null,null,null,null,null,null,75,null,null,null,null,null,null,0,0,1,"All'intero di edificio",null,null,"All'intero di edificio"]
[50,"Stabilimenti ed impianti ove si producono lampade elettriche e simili, pile ed accumulatori elettrici e simili, con oltre 5 addetti",76,"Superficie","m²",6,1000,0.1,null,null,null,null,null,null,null,null,null,null,null,null,76,null,null,null,null,null,null,0,0,0,0,null,null,""]
[51,"Stabilimenti siderurgici e per la produzione di altri metalli con oltre 5 addetti; attività comportanti lavorazioni a caldo di metalli con oltre 5 addetti ad esclusione dei laboratori artigiani di oreficeria ed argenteria fino a 25 addetti",77,"Superficie","m²",6,1000,0.2,null,null,null,null,null,null,null,null,null,null,null,null,77,null,null,null,null,null,null,0,0,0,0,null,null,""]
[52,"Stabilimenti, con oltre 5 addetti, per la costruzione di aeromobili, veicoli a motore, materiale rotabile ferroviario e tramviario, carrozzerie e rimorchi per autoveicoli; cantieri navali con oltre 5 addetti",78,"Superficie","m²",8,1000,0.1,null,null,null,null,null,null,null,null,null,null,null,null,78,null,null,null,null,null,null,0,0,0,0,null,null,""]
[53,"Officine per la riparazione di: veicoli a motore, rimorchi per autoveicoli e carrozzerie, di superficie coperta superiore a 300 m2; materiale rotabile tramviario e di aeromobili, di superficie coperta superiore a 1000 m2",79,"Superficie","m²",6,1000,0.1,"Solo Veicoli a motore",1,null,null,null,null,null,null,null,null,null,null,79,null,null,null,null,null,null,0,0,1,"Solo Veicoli a motore",null,null,"Solo Veicoli a motore"]
[null,null,80,null,null,null,null,null,"Aeromobili o treni",0.6,null,null,null,null,null,null,null,null,null,null,80,null,null,null,null,null,null,0,0,0.6,"Aeromobili o treni",null,null,"Aeromobili o treni"]
[54,"Officine meccaniche per lavorazioni a freddo con oltre 25 addetti",81,"Superficie","m²",6,1000,0.1,null,null,null,null,null,null,null,null,null,null,null,null,81,null,null,null,null,null,null,0,0,0,0,null,null,""]
[55,"Attività di demolizioni di veicoli e simili con relativi depositi, di superficie superiore a 3000 m²",82,"Superficie","m²",6,1000,0.1,null,null,null,null,null,null,null,null,null,null,null,null,82,null,null,null,null,null,null,0,0,0,0,null,null,""]
[56,"Stabilimenti ed impianti ove si producono laterizi, maioliche, porcellane e simili con oltre 25 addetti",83,"Superficie","m²",6,1000,0.1,null,null,null,null,null,null,null,null,null,null,null,null,83,null,null,null,null,null,null,0,0,0,0,null,null,""]
[57,"Cementifici con oltre 25 addetti",84,"Superficie","m²",6,1000,0.1,null,null,null,null,null,null,null,null,null,null,null,null,84,null,null,null,null,null,null,0,0,0,0,null,null,""]
[58,"Pratiche di cui al D.Lgs. 230/95 s.m.i. soggette a provvedimenti autorizzativi (art. 27 del D.Lgs. 230/95 ed art. 13 legge 31 dicembre 1962, n. 1860)",85,"Superficie","m²",6,1000,0.1,"Categoria B",1,null,null,null,null,null,null,null,null,null,null,85,null,null,null,null,null,null,0,0,1,"Categoria B",null,null,"Categoria B"]
[null,null,86,null,null,null,null,null,"Categoria A",1.5,null,null,null,null,null,null,null,null,null,null,86,null,null,null,null,null,null,0,0,1.5,"Categoria A",null,null,"Categoria A"]
[59,"Autorimesse adibite al ricovero di mezzi utilizzati per il trasporto di materie fissili speciali e di materie radioattive (art. 5 della legge 31 dicembre 1962, n. 1860, sostituito dall'art. 2 del decreto del Presidente della Repubblica 30 dicembre 1965, n. 1704; art. 21 del D.Lgs. 230/95)",87,"Superficie","m²",4,1000,0.1,null,null,null,null,null,null,null,null,null,null,null,null,87,null,null,null,null,null,null,0,0,0,0,null,null,""]
[60,"Impianti di deposito delle materie nucleari ed attività assoggettate agli artt. 33 e 52 del decreto legislativo 17 marzo 1995, n. 230 e s.m.i. , con esclusione dei depositi in corso di spedizione",88,"Superficie","m²",6,1000,0.1,null,null,null,null,null,null,null,null,null,null,null,null,88,null,null,null,null,null,null,0,0,0,0,null,null,""]
[61,"Impianti nei quali siano detenuti combustibili nucleari o prodotti o residui radioattivi [art. 1, lettera b) della legge 31 dicembre 1962, n. 1860]",89,"Superficie","m²",6,1000,0.1,null,null,null,null,null,null,null,null,null,null,null,null,89,null,null,null,null,null,null,0,0,0,0,null,null,""]
[62,"Impianti relativi all'impiego pacifico dell'energia nucleare ed attività che comportano pericoli di radiazioni ionizzanti derivanti dal predetto impiego: impianti nucleari",90,"Superficie","m²",10,1000,0.1,null,null,null,null,null,null,null,null,null,null,null,null,90,null,null,null,null,null,null,0,0,0,0,null,null,""]
[63,"Stabilimenti per la produzione, depositi di sapone, di candele e di altri oggetti di cera e di paraffina, di acidi grassi, di glicerina grezza quando non sia prodotta per idrolisi, di glicerina ",91,"Superficie","m²",4,1000,0.1,"massa [kg] Q",{"$f":"+\"X =(\" &O91&\"Q-\"&P91&\")/Q)\"","v":"X =(2Q-500)/Q)"},null,null,null,null,2,500,"Y = (2Q-500)/Q [curva asintotica verso 2]",null,null,null,91,null,null,null,null,null,null,0,0,"F","massa [kg] Q",null,null,"massa [kg] Q"]
[64,"Centri informatici di elaborazione e/o archiviazione dati con oltre 25 addetti",92,"Superficie","m²",6,300,0.1,null,null,null,null,null,null,null,null,null,null,null,null,92,null,null,null,null,null,null,0,0,0,0,null,null,""]
[65,"Locali di spettacolo e di trattenimento in genere, impianti e centri sportivi, palestre, sia a carattere pubblico che privato, con capienza superiore a 100 persone, ovvero di superficie lorda in pianta al chiuso superiore a 200 m2. Sono escluse le manifestazioni temporanee, di qualsiasi genere, che si effettuano in locali o luoghi aperti al pubblico",93,"Superficie","m²",6,1000,0.4,"Persone P",{"$f":"+\"X =(\" &O93&\"P-\"&P93&\")/P)\"","v":"X =(3P-200)/P)"},null,null,null,null,3,200,"Y = (3N-100)/N [curva asintotica verso 3]",null,null,null,93,3,100,null,null,null,null,1,0,"F","Persone P\n",null,null,"Persone P\n"]
[66,"Alberghi, pensioni, motel, villaggi albergo, residenze turistico - alberghiere, studentati, villaggi turistici, alloggi agrituristici, ostelli per la gioventù, rifugi alpini, bed & breakfast, dormitori, case per ferie, con oltre 25 posti-letto; Strutture turistico-ricettive nell'aria aperta (campeggi, villaggi-turistici, ecc.) con capacità ricettiva superiore a 400 persone",94,"Superficie","m²",6,1000,0.4,"Posti Letto PL",{"$f":"+\"X =(\" &O94&\"PL-\"&P94&\")/PL)\"","v":"X =(2PL-25)/PL)"},null,null,null,null,2,25,"Y = (2N-25)/N [curva asintotica verso 2]",null,null,null,94,null,null,null,null,null,null,1,0,"F","Posti Letto PL\n",null,null,"Posti Letto PL\n"]
[67,"Scuole di ogni ordine, grado e tipo, collegi, accademie con oltre 100 persone presenti; asili nido con oltre 30 persone presenti",95,"Superficie","m²",4,1000,0.1,"Persone P",{"$f":"+\"X =(\" &O95&\"P-\"&P95&\")/P)\"","v":"X =(3P-200)/P)"},null,null,null,null,3,200,null,null,null,null,95,null,null,null,null,null,null,0,0,"F","Persone P",null,null,"Persone P"]
["68(*)","Strutture sanitarie che erogano prestazioni in regime di ricovero ospedaliero e/o residenziale a ciclo continuativo e/o diurno, case di riposo per anziani con oltre 25 posti letto;  Strutture sanitarie che erogano prestazioni di assistenza specialistica in regime ambulatoriale, ivi comprese quelle riabilitative, di diagnostica strumentale e di laboratorio, di superficie complessiva superiore a 500 m2",96,"Sup. area tipo C e D1","m²",6,3000,0.4,"Sx - aree tipo B e/o F ","X = (Sx x 7)^0,5","Sy - aree tipo D2","Y = (Sy x 8)^0,5",null,null,null,null,"Per le aree di tipo C e D1 si applicano i limiti in superficie",null,null,null,96,null,null,null,null,null,null,0,0,"X = (Sx x 7)^0,5","Sx - aree tipo B e/o F ",null,null,"Sx - aree tipo B e/o F "]
[69,"Locali adibiti ad esposizione e/o vendita all'ingrosso o al dettaglio, fiere e quartieri fieristici, con superficie lorda superiore a 400 m2 comprensiva dei servizi e depositi. Sono escluse le manifestazioni temporanee, di qualsiasi genere, che si effettuano in locali o luoghi aperti al pubblico",97,"Superficie","m²",6,1000,0.3,"Vendita Ingrosso",0.8,null,null,null,null,null,null,null,null,null,null,97,null,null,null,null,null,null,1,1,0.8,"Vendita Ingrosso\n",null,null,"Vendita Ingrosso\n"]
[null,null,98,null,null,null,null,null,"Vendita Dettaglio",1,null,null,null,null,null,null,null,null,null,null,98,null,null,null,null,null,null,null,0,1,{"$f":"+IF(AB98=1,I98 & CHAR(10) &  \"\",I98)","v":"Vendita Dettaglio"},null,null,"Vendita Dettaglio"]
[70,"Locali adibiti a depositi di superficie lorda superiore a 1000 m2 con quantitativi di merci e materiali combustibili superiori complessivamente a 5000 kg",99,"Superficie","m²",4,1000,0.1,"massa [t] Q",{"$f":"+\"X =(\" &O99&\"Q-\"&P99&\")/Q)\"","v":"X =(2Q-5)/Q)"},null,null,null,null,2,5,"Y = (2Q-5)/Q [curva asintotica verso 2]",null,null,null,99,null,null,null,null,null,null,1,0,"F","massa [t] Q\n",null,null,"massa [t] Q\n"]
[71,"Aziende ed uffici con oltre 300 persone presenti",100,"Superficie","m²",6,1000,0.4,"Persone P",{"$f":"+\"X =(\" &O100&\"P-\"&P100&\")/P)\"","v":"X =(3P-600)/P)"},null,null,null,null,3,600,"Y = (3N-300)/N [curva asintotica verso 3]",null,null,null,100,null,null,null,null,null,null,1,0,"F","Persone P\n",null,null,"Persone P\n"]
[72,"Edifici sottoposti a tutela ai sensi del D.Lgs. 22 gennaio 2004, n. 42 destinati a contenere biblioteche ed archivi, musei, gallerie, esposizioni e mostre, nonché qualsiasi altra attività contenuta nel presente Allegato indipendentemente dal numero di attività costituenti e dalla relativa diversa titolarità",101,"Superficie","m²",8,1000,0.3,"Bibblioteche, musei e simili",1,null,null,null,null,null,null,"Se le attività all'interno sono già soggette si aumenta solo di un 30%",null,null,null,101,null,null,null,null,null,null,0,0,1,"Bibblioteche, musei e simili",null,null,"Bibblioteche, musei e simili"]
[null,null,102,null,null,null,null,null,"Altre attività soggette",0.3,null,null,null,null,null,null,null,null,null,null,102,null,null,null,null,null,{"$f":"+(3920*6)^0.5","v":153.36231610144651},0,0,0.3,"Altre attività soggette",null,null,"Altre attività soggette"]
[73,"Edifici e/o complessi edilizi a uso terziario e/o industriale caratterizzati da promiscuità strutturale e/o dei sistemi delle vie di esodo e/o impiantistica con presenza di persone superiore a 300 unità, ovvero di superficie complessiva superiore a 5000 m2, indipendentemente dal numero di attività costituenti e dalla relativa diversa titolarità",103,"Superficie","m²",4,1500,0.1,"Attività interne non soggette",1,null,null,null,null,null,null,"Se le attività all'interno sono già soggette si aumenta solo di un 20%",null,null,null,103,null,null,null,null,null,null,0,0,1,"Attività interne non soggette",null,null,"Attività interne non soggette"]
[null,null,104,null,null,null,null,null,"Attività interne soggette",0.2,null,null,null,null,null,null,null,null,null,null,104,null,null,null,null,8000,{"$f":"+Z104^0.5","v":89.442719099991592},0,0,0.2,"Attività interne soggette",null,null,"Attività interne soggette"]
[74,"Impianti per la produzione di calore alimentati a combustibile solido, liquido o gassoso con potenzialità superiore a 116 kW",105,"Potenza ","kW",4,null,null,null,null,null,null,null,null,null,null,null,null,null,null,105,null,null,null,null,{"$f":"1200*7","v":8400},{"$f":"+Z105^0.5","v":91.651513899116793},0,0,0,0,null,null,""]
[75,"Autorimesse pubbliche e private, parcheggi pluriplano e meccanizzati di superficie complessiva superiore a 300 m2; locali adibiti al ricovero di natanti ed aeromobili di superficie superiore a 500 m2; depositi di mezzi rotabili al chiuso (treni, tram ecc.) di superficie superiore a 1000 m2",106,"Superficie","m²",6,1000,0.4,"Numero di Piani Interrati PI",{"$f":"+\"X =(\" &O106&\"PI-\"&P106&\")/PI)\"","v":"X =(2PI-0,8)/PI)"},"Automobili",1,null,null,2,0.8,"Y = (2P-1)/P [curva asintotica verso 2]",null,null,null,106,null,null,null,null,null,{"$f":"+AA105+AA104+AA102","v":334.45654910055487},1,0,"F","Numero di Piani Interrati PI\n",null,null,"Numero di Piani Interrati PI\n"]
[null,null,107,null,null,null,null,null,null,null,"Rotabili",0.6,null,null,null,null,null,null,null,null,107,null,null,null,null,null,null,1,0,0,"\n",null,null,""]
[76,"Tipografie, litografie, stampa in offset ed attività similari con oltre cinque addett",108,"Superficie","m²",6,1000,0.1,null,null,null,null,null,null,null,null,null,null,null,null,108,null,null,null,null,null,null,0,0,0,0,null,null,""]
[77,"Edifici destinati ad uso civile, con altezza antincendio superiore a 24 m",109,"Altezza","m",6,60,0.3,"Numero Scale SC",{"$f":"+\"X =(\" &O109&\"SC-\"&P109&\")/SC)\"","v":"X =(2SC-1)/SC)"},null,null,null,null,2,1,"Y = (2P-1)/P [curva asintotica verso 2]",null,null,null,109,null,null,null,null,null,null,1,0,"F","Numero Scale SC\n",null,null,"Numero Scale SC\n"]
[78,"Aerostazioni, stazioni ferroviarie, stazioni marittime, con superficie coperta accessibile al pubblico superiore a 5000 m2; metropolitane in tutto o in parte sotterranee",110,"Superficie (per aerostazioni, stazioni ecc)","m²",8,5000,0.4,"Aerostazione",3,null,null,null,null,null,null,null,null,null,null,110,null,null,null,null,null,null,0,0,3,"Aerostazione",null,null,"Aerostazione"]
[null,null,111,"N. fermate metropolitane","n",40000,null,null,"Stazione Ferroviaria",1,null,null,null,null,null,null,null,null,null,null,111,null,null,null,null,null,null,0,0,1,"Stazione Ferroviaria",null,null,"Stazione Ferroviaria"]
[79,"Interporti con superficie superiore a 20.000 m²",112,"Superficie","m²",4,50000,0.1,null,null,null,null,null,null,null,null,null,null,null,null,112,null,null,null,null,null,null,0,0,0,0,null,null,""]
[80,"Gallerie stradali di lunghezza superiore a 500 m e ferroviarie superiori a 2000 ",113,"Lunghezza","m",100,null,null,"Autostradale",3,null,null,null,null,null,null,null,null,null,null,{"$f":"+C113","v":113},null,null,null,null,null,null,0,0,3,"Autostradale",null,null,"Autostradale"]
[null,null,114,null,null,null,null,null,"Ferroviaria",1,null,null,null,null,null,null,null,null,null,null,{"$f":"+C114","v":114},null,null,null,null,null,null,0,0,1,"Ferroviaria",null,null,"Ferroviaria"]
[null,null,115]

{"sheet":"Foglio1","index":5,"n_rows":28,"n_cols":18,"rows_kept":28,"cut":false,"hidden":true,"merged":[]}
[4,{"$f":"+A1*60","v":240},null,720,{"$f":"+D1-$B$3","v":240}]
[null,720,null,780,{"$f":"+D2-$B$3","v":300}]
[null,{"$f":"+B2-B1","v":480},null,1320,840,null,null,null,null,null,null,{"$f":"184/34","v":5.4117647058823533}]
[null,null,null,1680,1200]
[null,null,null,1740,1260,null,null,null,null,null,null,{"$f":"34/184","v":0.18478260869565216}]
[null,null,null,1860,1380]
[null,null,null,2520,2040,null,null,null,null,null,null,{"$f":"16/114","v":0.14035087719298245}]
[null,null,null,4440,3960]
[null,null,null,null,null,null,null,null,2,3]
[null,null,null,null,null,null,null,null,2,4]
[]
[{"$f":"+SQRT(1890)","v":43.474130238568314},{"$f":"+A12/30","v":1.4491376746189437},3,{"$f":"+C12*60","v":180}]
[null,{"$f":"+B12*60","v":86.948260477136628}]
[]
[null,null,null,null,null,null,null,null,null,null,null,null,null,16,{"$f":"+N15/N16","v":62.774639045825502}]
[null,null,null,null,null,null,null,null,null,null,1.18,0.18,1.2,{"$f":"+K16*L16*M16","v":0.25487999999999994}]
[]
[]
[null,null,null,{"$f":"0.5*0.18*1.2","v":0.108},null,22,{"$f":"+F19/0.1","v":220}]
[null,null,null,{"$f":"0.5*22","v":11},null,22]
[]
[]
[null,null,null,0.8,{"$f":"+D23*50","v":40},22,{"$f":"+F23/0.8","v":27.5}]
[]
[null,null,null,null,null,null,null,null,null,{"$f":"27+63","v":90},null,null,null,null,240,180,126,{"$f":"+SUM(O25:Q25)","v":546}]
[null,null,null,1.18,0.18,0.45,{"$f":"+D26*E26*F26","v":9.5579999999999998E-2}]
[null,null,null,null,null,null,null,16,{"$f":"+H27/H28","v":30.131826741996232}]
[null,null,null,null,null,null,null,{"$f":"1.18*0.45","v":0.53100000000000003},null,null,null,null,null,null,null,null,null,{"$f":"0.6-0.15","v":0.44999999999999996}]

{"sheet":"FOGLIO CALCOLI (2)","index":6,"n_rows":20,"n_cols":39,"rows_kept":20,"cut":false,"hidden":true,"merged":[[0,4,0,8],[10,2,10,9],[19,4,19,5]]}
[null,null,null,null,"PARAMETRI"]
["Attività","Descrizione","Sottotipo","Un.Mis","Principale [S]","Agg. 1 (X)","Valore","Agg. 2 (Y)","Valore","Totale",null,null,null,null,null,null,null,null,null,null,null,null,null,"rif.RigaIn","Rif.RigaFin","Ind.Sottotipo","Fatt. Corr","Par.Agg1","Par.X","Par.Agg2","Par.Y","Limite","Eccedenza","PAR X","PAR Y","Par. Princ","PER ATT. 68"]
[4,{"$f":"+VLOOKUP($A3,TabAtt,2,FALSE)","v":"Depositi di gas infiammabili in serbatoi fissi: compressi per capacità geometrica complessiva superiore o uguale a 0, 75 m3; disciolti o liquefatti per capacità geometrica complessiva superiore o uguale a 0,3 m3"},"Volume",{"$f":"+VLOOKUP(C3,INDIRECT(ADDRESS(X3,4,1,,\"PARAMETRI ATTIVITA\") & \":\" & +ADDRESS(X3+5,12,1,,)),2,FALSE)","v":"m³"},1000,"Solo Deposito",1,"Non Def.",0,{"$f":"IF(AF3=0,+SQRT(AJ3*AA3)*AC3*AE3,IF(AJ3-AF3<0,+SQRT((AJ3+AK3)*AA3)*AC3*AE3,SQRT((AF3+AK3+(AJ3-AF3)*AG3)*AA3))*AC3*AE3)","v":289.82753492378879},null,null,null,null,null,null,null,null,null,null,null,null,null,{"$f":"+VLOOKUP($A3,TabAtt,3,FALSE)","v":8},{"$f":"+VLOOKUP($A3+1,TabAtt,3,FALSE)-X3","v":2},{"$f":"+ADDRESS(X3,4,1,,\"PARAMETRI ATTIVITA\")","v":"'PARAMETRI ATTIVITA'!$D$8"},{"$f":"+VLOOKUP(C3,INDIRECT(ADDRESS(X3,4,1,,\"PARAMETRI ATTIVITA\") & \":\" & +ADDRESS(X3+5,12,1,,)),3,FALSE)","v":300},{"$f":"+ADDRESS(X3,7,1,,\"PARAMETRI ATTIVITA\")","v":"'PARAMETRI ATTIVITA'!$G$8"},{"$f":"+IF(AM3=\"F\",IF((G3*AH3-AI3)/G3<0,1,(G3*AH3-AI3)/G3),AM3)","v":1},{"$f":"+ADDRESS(X3,9,1,,\"PARAMETRI ATTIVITA\")","v":"'PARAMETRI ATTIVITA'!$I$8"},{"$f":"++IF(A3=68,1,VLOOKUP(H3,INDIRECT(ADDRESS(X3,9,1,,\"PARAMETRI ATTIVITA\") & \":\" & +ADDRESS(X3+5,108,1,,)),2,FALSE))","v":1},{"$f":"+VLOOKUP(C3,INDIRECT(ADDRESS(X3,4,1,,\"PARAMETRI ATTIVITA\") & \":\" & +ADDRESS(X3+5,12,1,,)),8,FALSE)","v":200},{"$f":"+VLOOKUP(C3,INDIRECT(ADDRESS(X3,4,1,,\"PARAMETRI ATTIVITA\") & \":\" & +ADDRESS(X3+5,12,1,,)),9,FALSE)","v":0.1},{"$f":"+IF(ISERROR(VLOOKUP($A3,TabAtt,13,FALSE))=FALSE,VLOOKUP($A3,TabAtt,13,FALSE),1)","v":0},{"$f":"+IF(ISERROR(VLOOKUP($A3,TabAtt,14,FALSE))=FALSE,VLOOKUP($A3,TabAtt,14,FALSE),1)","v":0},{"$f":"+E3","v":1000},{"$f":"+IF(A3=68,G3*VLOOKUP(F3,INDIRECT(ADDRESS(X3,7,1,,\"PARAMETRI ATTIVITA\") & \":\" & +ADDRESS(X3+5,8,1,,)),2,FALSE)+I3*VLOOKUP(H3,INDIRECT(ADDRESS(X3,9,1,,\"PARAMETRI ATTIVITA\") & \":\" & +ADDRESS(X3+5,108,1,,)),2,FALSE),0)","v":0},null,{"$f":"+IF(A3=68,1,VLOOKUP(F3,INDIRECT(ADDRESS(X3,7,1,,\"PARAMETRI ATTIVITA\") & \":\" & +ADDRESS(X3+5,8,1,,)),2,FALSE))","v":1}]
[null,null,null,{"$f":"+\"Limite superiore [\"& D3 & \"] =\"","v":"Limite superiore [m³] ="},{"$f":"+INDIRECT(ADDRESS(X3,11,1,,\"PARAMETRI ATTIVITA\"))","v":200},"Note =",{"$f":"+INDIRECT(ADDRESS(X3,15,1,,\"PARAMETRI ATTIVITA\"))","v":0},null,null,null,null,null,null,null,null,null,null,null,null,null,null,null,null,null,null,{"$f":"+ADDRESS(X3,4,1,,\"PARAMETRI ATTIVITA\") & \":\" & +ADDRESS(X3+5,12,1,,)","v":"'PARAMETRI ATTIVITA'!$D$8:$L$13"}]
[null,null,null,{"$f":"+\"Calcolo dell'eccedenza dei [\"& D3 & \"] =\"","v":"Calcolo dell'eccedenza dei [m³] ="},{"$f":"+INDIRECT(ADDRESS(X3,12,1,,\"PARAMETRI ATTIVITA\"))","v":0.1},"Valore Parametro X =",{"$f":"+AC3","v":1},"Valore Parametro Y =",{"$f":"+AE3","v":1}]
[null,null,null,"Fattore K applicato:",{"$f":"+AA3","v":300}]
[]
[null,null,null,null,null,null,null,null,null,null,null,null,null,null,null,null,null,null,null,null,null,null,null,null,null,null,null,null,null,null,null,null,null,{"$f":"+ISERROR(VLOOKUP($A3,TabAtt,13,FALSE))","v":false}]
["INSERISCI",null,"INSERISCI",null,"INSERISCI","CONTROLLA",null,"CONTROLLA",null,"SE X o Y NON ESISTONO",null,null,null,null,null,null,null,null,null,null,null,null,null,null,null,{"$f":"+IF(E4>0,IF((E3-E4)>0,\"(\" & E4 & \" + \"&E3-E4&\" x \" & E5 &\")x\" & E6,E3 & \"x \" & E6),E3)","v":"(200 + 800 x 0,1)x300"},{"$f":"+IF(F3=\"non def.\",\"\",\" x\" &TEXT(G5,\"#0,00\"))","v":" x1,00"},{"$f":"+IF(H3=\"non def.\",\"\",\" x\" & TEXT(I5,\"#0,00\"))","v":""}]
["ATTIVITA'",null,"SOTTOTIPO",null,"QUANTITA'","SE ESISTE X",null,"SE ESISTE Y",null,"SELEZIONA NON DEF."]
[null,null,{"$f":"\"Formula = [SxK]^0,5 \" & IF(AA9 = \"\",\"\",\" x X\") & IF(AB9=\"\",\"\",\"  x Y\") & \" = \" &  \" [\" & Z9 &\"]^0,5\" & TEXT(AA9,\"#0.00\") & TEXT(AB9,\"#0.00\") & \"= \" & TEXT(J3,\"#.0,00\")","v":"Formula = [SxK]^0,5  x X =  [(200 + 800 x 0,1)x300]^0,5 x1,00= 289,83"},null,null,null,null,null,null,null,null,null,null,null,null,null,null,null,null,null,null,null,null,null,null,null,null,null,"nof","der","fse"]
[null,null,null,null,null,null,null,null,null,null,null,null,null,null,null,null,null,null,null,null,null,null,null,null,null,"Non Normato",1.2,"si",1.2,1.5,2]
[null,null,null,null,null,null,null,null,null,null,null,null,null,null,null,null,null,null,null,null,null,null,null,null,null,"normata da regola tecnica prescrittiva",1,"no",1,1,1]
[null,null,null,null,null,null,null,null,null,null,null,null,null,null,null,null,null,null,null,null,null,null,null,null,null,"DM 2015",1.5]
[null,null,"Parametro Attività","Normato?","NOF?","DER?","FSE?","Costo Orario"]
[null,null,{"$f":"+J3","v":289.82753492378879},"normata da regola tecnica prescrittiva","no","no","no",50,null,null,null,null,null,null,null,null,null,null,null,null,null,null,null,null,null,null,{"$f":"+VLOOKUP(D16,Z12:AA14,2,FALSE)","v":1},{"$f":"+VLOOKUP(E16,$AB$12:$AE$13,2,FALSE)","v":1},{"$f":"+VLOOKUP(F16,$AB$12:$AE$13,3,FALSE)","v":1},{"$f":"+VLOOKUP(G16,$AB$12:$AE$13,4,FALSE)","v":1}]
[]
[]
[null,7]
[null,null,null,"Compenso =",{"$f":"+C16*H16*PRODUCT(AA16:AD16)","v":14491.376746189439}]

{"sheet":"Foglio2","index":7,"n_rows":0,"n_cols":0,"rows_kept":0,"cut":false,"hidden":false,"merged":[]}